Date Paid,Transaction Number,Amount,Supplier Name,Period,Expense Area,Cipfa(T)
05/10/2016,3842292,600,2simple Software Ltd,201707,Schools,Supplies & Services
12/10/2016,3843201,"27,023.30",Jisc Services Limited,201707,Resources,Supplies & Services
12/10/2016,3842898,"1,645.56",REDACTED,201707,Environment and Place,Transport-Related Expenditure
12/10/2016,3842899,"2,126.16",REDACTED,201707,Environment and Place,Transport-Related Expenditure
14/10/2016,3843255,"1,331.52",REDACTED,201707,Environment and Place,Transport-Related Expenditure
21/10/2016,3843856,"3,420.00",REDACTED,201707,Environment and Place,Transport-Related Expenditure
07/10/2016,3842672,"1,402.00",Abbeydore & Bacton G.P.C.,201707,Environment and Place,Third Party Payments
02/11/2016,3845901,521,Supplymeprint.com Ltd T/A ABC,201707,Growth,Supplies & Services
12/10/2016,3842826,"1,798.00",Ace Coaches & Travel,201707,Environment and Place,Transport-Related Expenditure
12/10/2016,3842858,"2,088.00",Ace Coaches & Travel,201707,Environment and Place,Transport-Related Expenditure
05/10/2016,3842183,480,Action Centres Uk Ltd,201707,Schools,Supplies & Services
28/10/2016,3845691,600,REDACTED,201707,Schools,Supplies & Services
12/10/2016,3842881,"1,753.16",Advanced Legal Solutions Limited,201707,Communities,Supplies & Services
26/10/2016,3844803,"1,083.67",Aligned Assets Ltd,201707,Resources,Supplies & Services
05/10/2016,3842101,464,Alliance In Partnership,201707,Schools,Supplies & Services
05/10/2016,3842452,484,Alliance In Partnership,201707,Schools,Supplies & Services
12/10/2016,3843010,"1,452.50",Alliance In Partnership,201707,Schools,Supplies & Services
14/10/2016,3843206,"1,507.50",Alliance In Partnership,201707,Schools,Supplies & Services
14/10/2016,3843219,"2,136.00",Alliance In Partnership,201707,Schools,Supplies & Services
14/10/2016,3843231,"3,525.30",Alliance In Partnership,201707,Schools,Supplies & Services
14/10/2016,3843610,"2,715.10",Alliance In Partnership,201707,Schools,Supplies & Services
14/10/2016,3843611,579.55,Alliance In Partnership,201707,Schools,Supplies & Services
14/10/2016,3843617,803,Alliance In Partnership,201707,Schools,Supplies & Services
14/10/2016,3843618,"1,302.30",Alliance In Partnership,201707,Schools,Supplies & Services
14/10/2016,3843619,675.4,Alliance In Partnership,201707,Schools,Supplies & Services
14/10/2016,3843620,"2,182.50",Alliance In Partnership,201707,Schools,Supplies & Services
14/10/2016,3843621,"7,640.80",Alliance In Partnership,201707,Schools,Supplies & Services
19/10/2016,3843582,"1,091.20",Alliance In Partnership,201707,Schools,Supplies & Services
19/10/2016,3843650,950,Alliance In Partnership,201707,Schools,Supplies & Services
19/10/2016,3844325,"1,065.10",Alliance In Partnership,201707,Schools,Supplies & Services
21/10/2016,3843962,"1,858.50",Alliance In Partnership,201707,Schools,Supplies & Services
21/10/2016,3843968,"2,562.30",Alliance In Partnership,201707,Schools,Supplies & Services
21/10/2016,3844593,"2,406.96",Alliance In Partnership,201707,Schools,Supplies & Services
26/10/2016,3844870,"1,238.60",Alliance In Partnership,201707,Schools,Supplies & Services
26/10/2016,3845096,"1,651.90",Alliance In Partnership,201707,Schools,Supplies & Services
26/10/2016,3845348,"6,446.90",Alliance In Partnership,201707,Schools,Supplies & Services
26/10/2016,3845350,643.5,Alliance In Partnership,201707,Schools,Supplies & Services
26/10/2016,3845351,"1,905.20",Alliance In Partnership,201707,Schools,Supplies & Services
26/10/2016,3845352,"1,619.20",Alliance In Partnership,201707,Schools,Supplies & Services
26/10/2016,3845472,844.1,Alliance In Partnership,201707,Schools,Supplies & Services
28/10/2016,3845690,"2,420.00",Alliance In Partnership,201707,Schools,Supplies & Services
28/10/2016,3845878,"2,583.00",Alliance In Partnership,201707,Schools,Supplies & Services
30/09/2016,3845353,844.1,Almeley Parish Council,201707,Schools,Supplies & Services
26/10/2016,3844656,"78,665.58",REDACTED,201707,Commissioning Capital,Capital Expenditure
26/10/2016,3844657,"174,005.42",REDACTED,201707,Commissioning Capital,Capital Expenditure
27/10/2016,2163453,"120,953.00",Farrer & Co LLP,201707,Herefordshire Council Capital,Capital Income
12/10/2016,3842839,"20,994.64",George Youngs Coaches Ltd,201707,Environment and Place,Transport-Related Expenditure
05/10/2016,3842480,"2,520.00",REDACTED,201707,Environment and Place,Transport-Related Expenditure
05/10/2016,3842481,"2,430.00",REDACTED,201707,Environment and Place,Transport-Related Expenditure
05/10/2016,3842483,"2,520.00",REDACTED,201707,Environment and Place,Transport-Related Expenditure
05/10/2016,3842494,"2,124.00",REDACTED,201707,Environment and Place,Transport-Related Expenditure
05/10/2016,3842495,"2,340.00",REDACTED,201707,Environment and Place,Transport-Related Expenditure
05/10/2016,3842496,"2,610.00",REDACTED,201707,Environment and Place,Transport-Related Expenditure
05/10/2016,3842497,"2,160.00",REDACTED,201707,Environment and Place,Transport-Related Expenditure
07/10/2016,3842482,"2,700.00",REDACTED,201707,Environment and Place,Transport-Related Expenditure
12/10/2016,3842621,"2,520.00",REDACTED,201707,Environment and Place,Transport-Related Expenditure
12/10/2016,3842628,750,REDACTED,201707,Environment and Place,Transport-Related Expenditure
19/10/2016,3843250,"2,340.00",REDACTED,201707,Environment and Place,Transport-Related Expenditure
07/10/2016,3842442,"1,368.00",B & H Cars,201707,Learning Disabilities,Transport-Related Expenditure
26/10/2016,3845166,950,B & H Cars,201707,Learning Disabilities,Transport-Related Expenditure
21/10/2016,3843809,590,Aquaid (Midlands & South Wales),201707,Schools,Supplies & Services
21/10/2016,3844482,700.2,Aquaid (Midlands & South Wales),201707,Schools,Supplies & Services
14/10/2016,3843020,591,Archives And Records Association,201707,Communities,Employees
28/10/2016,3845615,"8,192.75",Arriva Trains Wales Ltd,201707,Environment and Place,Transport-Related Expenditure
28/10/2016,3845616,"13,700.20",Arriva Trains Wales Ltd,201707,Environment and Place,Transport-Related Expenditure
28/10/2016,3845617,"16,690.20",Arriva Trains Wales Ltd,201707,Environment and Place,Transport-Related Expenditure
28/10/2016,3845618,"9,906.80",Arriva Trains Wales Ltd,201707,Environment and Place,Transport-Related Expenditure
28/10/2016,3845619,"13,088.30",Arriva Trains Wales Ltd,201707,Environment and Place,Transport-Related Expenditure
28/10/2016,3845620,"10,043.45",Arriva Trains Wales Ltd,201707,Environment and Place,Transport-Related Expenditure
28/10/2016,3845621,"14,582.55",Arriva Trains Wales Ltd,201707,Environment and Place,Transport-Related Expenditure
28/10/2016,3845622,"10,121.35",Arriva Trains Wales Ltd,201707,Environment and Place,Transport-Related Expenditure
28/10/2016,3845623,"11,190.05",Arriva Trains Wales Ltd,201707,Environment and Place,Transport-Related Expenditure
28/10/2016,3845626,"13,315.05",Arriva Trains Wales Ltd,201707,Environment and Place,Transport-Related Expenditure
28/10/2016,3845627,"6,018.35",Arriva Trains Wales Ltd,201707,Environment and Place,Transport-Related Expenditure
28/10/2016,3845628,"8,376.15",Arriva Trains Wales Ltd,201707,Environment and Place,Transport-Related Expenditure
28/10/2016,3845629,"11,999.05",Arriva Trains Wales Ltd,201707,Environment and Place,Transport-Related Expenditure
28/10/2016,3845630,"15,488.35",Arriva Trains Wales Ltd,201707,Environment and Place,Transport-Related Expenditure
28/10/2016,3845631,"4,145.80",Arriva Trains Wales Ltd,201707,Environment and Place,Transport-Related Expenditure
28/10/2016,3845636,"11,138.75",Arriva Trains Wales Ltd,201707,Environment and Place,Transport-Related Expenditure
28/10/2016,3845637,"9,272.40",Arriva Trains Wales Ltd,201707,Environment and Place,Transport-Related Expenditure
28/10/2016,3845638,"6,757.60",Arriva Trains Wales Ltd,201707,Environment and Place,Transport-Related Expenditure
28/10/2016,3845639,"9,727.65",Arriva Trains Wales Ltd,201707,Environment and Place,Transport-Related Expenditure
21/10/2016,3844143,800.41,Allstar Business Solutions Ltd (Arval),201707,Environment and Place,Transport-Related Expenditure
26/10/2016,3845208,818.37,Allstar Business Solutions Ltd (Arval),201707,Environment and Place,Transport-Related Expenditure
21/10/2016,2161437,649,Ashfield Park Primary School,201707,Children & Young People Capital,Capital Income
19/10/2016,3843836,587.52,Veolia Transport T/A Astons Coaches,201707,Environment and Place,Third Party Payments
21/10/2016,3843828,"9,405.87",Veolia Transport T/A Astons Coaches,201707,Environment and Place,Third Party Payments
21/10/2016,3843832,699.67,Veolia Transport T/A Astons Coaches,201707,Environment and Place,Third Party Payments
21/10/2016,3844446,"12,343.00",Veolia Transport T/A Astons Coaches,201707,Environment and Place,Third Party Payments
19/10/2016,3843407,"1,050.00",Veolia Transport T/A Astons Coaches,201707,Schools,Supplies & Services
12/10/2016,2157717,"5,386.88",Aylestone School Imprest A/C,201707,Schools,Supplies & Services
12/10/2016,2157717,"1,419.75",Aylestone School Imprest A/C,201707,Schools,Transport-Related Expenditure
21/10/2016,3844518,"4,451.00",B & B Services Ltd,201707,Housing & Independent Living Capital,Capital Expenditure
26/10/2016,3844152,419.98,Barrettine Environmental Health,201707,Environment and Place,Supplies & Services
28/10/2016,3845766,"1,639.00",Barrettine Environmental Health,201707,Environment and Place,Supplies & Services
14/10/2016,3842995,"32,500.00",Eastnor Castle Enterprises,201707,Communities Capital,Capital Expenditure
12/10/2016,3842999,501.89,Bertram Trading Ltd,201707,Communities,Supplies & Services
12/10/2016,3843004,"8,463.90",Bertram Trading Ltd,201707,Communities,Supplies & Services
12/10/2016,3843006,"2,157.24",Bertram Trading Ltd,201707,Communities,Supplies & Services
14/10/2016,3843448,"3,686.79",Bespoke Cleaning Services,201707,Schools,Premises-Related Expenditure
14/10/2016,3843460,723.69,Bespoke Cleaning Services,201707,Schools,Premises-Related Expenditure
19/10/2016,3844423,"1,052.76",Bespoke Cleaning Services,201707,Schools,Premises-Related Expenditure
21/10/2016,3843688,988.74,Bespoke Cleaning Services,201707,Schools,Premises-Related Expenditure
21/10/2016,3843698,988.74,Bespoke Cleaning Services,201707,Schools,Premises-Related Expenditure
26/10/2016,3845066,988.74,Bespoke Cleaning Services,201707,Schools,Premises-Related Expenditure
05/10/2016,3841917,553.7,Bikold Ltd,201707,Schools,Supplies & Services
05/10/2016,3841920,534.82,Bikold Ltd,201707,Schools,Supplies & Services
26/10/2016,3845068,653.03,Bikold Ltd,201707,Schools,Supplies & Services
26/10/2016,3845295,452.75,Bikold Ltd,201707,Schools,Supplies & Services
26/10/2016,3845299,629.87,Bikold Ltd,201707,Schools,Supplies & Services
26/10/2016,3845284,535,Bishop Of Herefords Bluecoat School,201707,Education and Commissioning,Support Services
19/10/2016,3844054,570,Blue Line Taxis,201707,Environment and Place,Transport-Related Expenditure
19/10/2016,3844055,"1,680.00",Blue Line Taxis,201707,Environment and Place,Transport-Related Expenditure
19/10/2016,3844182,684.48,Blue Line Taxis,201707,Environment and Place,Transport-Related Expenditure
19/10/2016,3844183,"1,260.00",Blue Line Taxis,201707,Environment and Place,Transport-Related Expenditure
21/10/2016,3844365,"1,480.00",Blue Line Taxis,201707,Environment and Place,Transport-Related Expenditure
21/10/2016,3844366,"1,152.00",Blue Line Taxis,201707,Environment and Place,Transport-Related Expenditure
21/10/2016,3844424,"3,210.00",Blue Line Taxis,201707,Environment and Place,Transport-Related Expenditure
21/10/2016,3844426,"2,090.00",Blue Line Taxis,201707,Environment and Place,Transport-Related Expenditure
21/10/2016,3844427,"2,480.00",Blue Line Taxis,201707,Environment and Place,Transport-Related Expenditure
21/10/2016,3844599,"1,800.00",Blue Line Taxis,201707,Environment and Place,Transport-Related Expenditure
26/10/2016,3845177,925,Blue Line Taxis,201707,Environment and Place,Transport-Related Expenditure
26/10/2016,3845207,660,Blue Line Taxis,201707,Environment and Place,Transport-Related Expenditure
26/10/2016,3845209,"1,525.00",Blue Line Taxis,201707,Environment and Place,Transport-Related Expenditure
26/10/2016,3845214,"1,080.00",Blue Line Taxis,201707,Environment and Place,Transport-Related Expenditure
26/10/2016,3845232,506,Blue Line Taxis,201707,Environment and Place,Transport-Related Expenditure
26/10/2016,3845074,948,Bodenham Parish Council,201707,Environment and Place,Third Party Payments
05/10/2016,3841987,443.5,Bookpoint Ltd,201707,Schools,Supplies & Services
21/10/2016,3844236,459.8,Bookpoint Ltd,201707,Schools,Supplies & Services
21/10/2016,3844536,975,Bookpoint Ltd,201707,Schools,Supplies & Services
05/10/2016,3842046,870,Border Contracts Fencing Ltd,201707,Schools,Premises-Related Expenditure
05/10/2016,3842455,"1,040.00",Boss,201707,Resources,Premises-Related Expenditure
07/10/2016,3842457,436,Boss,201707,Resources,Premises-Related Expenditure
19/10/2016,3844411,561.4,Boss,201707,Schools,Supplies & Services
19/10/2016,3844412,"1,272.32",Boss,201707,Schools,Supplies & Services
21/10/2016,3843725,481.62,Boss,201707,Schools,Supplies & Services
28/10/2016,3845845,"1,057.81",Boss,201707,Schools,Supplies & Services
28/10/2016,3845846,691.33,Boss,201707,Schools,Supplies & Services
21/10/2016,3843831,745.32,Bowyer's Coaches,201707,Environment and Place,Third Party Payments
12/10/2016,3842841,"1,800.00",Bowyer's Coaches,201707,Environment and Place,Transport-Related Expenditure
26/10/2016,3845537,500,BPF (AV) Ltd,201707,Schools,Premises-Related Expenditure
14/10/2016,2160661,"1,175.70",Brampton Abbotts CE School Imprest,201707,Schools,Supplies & Services
21/10/2016,3844796,514.8,Bridstow Parish Council,201707,Environment and Place,Third Party Payments
21/10/2016,3844818,"1,296.00",Brimfield & Little Hereford G P C,201707,Environment and Place,Third Party Payments
07/10/2016,3842561,"119,429.66",Speller Metcalfe Malvern Ltd,201707,Resources Capital,Capital Expenditure
28/10/2016,3844119,"1,134.70",Bruel & Kjaer UK Ltd,201707,Environment and Place,Supplies & Services
12/10/2016,3842862,"3,800.00",Buchanans Coaches,201707,Environment and Place,Transport-Related Expenditure
12/10/2016,3842902,"2,520.00",Buchanans Coaches,201707,Environment and Place,Transport-Related Expenditure
28/10/2016,3845881,715,Buchanans Coaches,201707,Schools,Transport-Related Expenditure
12/10/2016,3842886,"1,400.00",Enterprise Rent A Car UK T/A Flex E Rent,201707,Environment and Place,Transport-Related Expenditure
26/10/2016,3844836,525,REDACTED,201707,Schools,Supplies & Services
20/10/2016,2161099,"1,155.57",Ross Country Cars (Standing Order),201707,Environment and Place,Supplies & Services
20/10/2016,2161097,750.58,Hay & District Dial a Ride,201707,Environment and Place,Supplies & Services
25/11/2016,3844116,700.32,G4S Cash Service (Direct Debit),201707,Resources,Third Party Payments
19/10/2016,3844293,"41,907.48",REDACTED,201707,Schools Devolved Capital,Capital Expenditure
24/10/2016,3844085,"4,797.43",Allpay Ltd  (Direct Debit only),201707,Resources,Supplies & Services
05/10/2016,3842108,682,Cambridge University Press,201707,Schools,Supplies & Services
19/10/2016,3843572,"1,529.25",Cambridge University Press,201707,Schools,Supplies & Services
21/10/2016,3843787,"1,207.20",Cambridge University Press,201707,Schools,Supplies & Services
27/10/2016,3844117,"4,831.59",Capita Business Services Ltd (Direct Debit),201707,Resources,Supplies & Services
21/10/2016,3844483,"3,047.18",Rethink Printing Ltd,201707,Schools,Supplies & Services
26/10/2016,3844976,"1,512.50",CF Roberts (Electrical Contractors) Plc,201707,Schools,Premises-Related Expenditure
05/10/2016,3841938,"3,326.75",CIPFA,201707,Resources,Employees
21/10/2016,3843808,690.1,PEAC (UK) Ltd,201707,Schools,Supplies & Services
26/10/2016,3845181,747.4,Cleanmy Ltd,201707,Schools,Supplies & Services
14/10/2016,3843095,942.79,Clearview Cleaning Services,201707,Schools,Premises-Related Expenditure
14/10/2016,3843412,533.42,Clearview Cleaning Services,201707,Schools,Premises-Related Expenditure
05/10/2016,3842510,673.5,Climb On Bikes,201707,Holding Codes,Holding Codes
12/10/2016,3842844,524.23,Climb On Bikes,201707,Holding Codes,Holding Codes
21/10/2016,3844386,"1,200.00",Results Squared Ltd,201707,Schools,Supplies & Services
28/10/2016,3845795,"10,579.00",Collins Design & Build Ltd,201707,Growth Capital,Capital Expenditure
26/10/2016,3845137,"1,679.40",CVA Ledbury & District,201707,Environment and Place,Transport-Related Expenditure
26/10/2016,3845138,"1,699.60",CVA Ledbury & District,201707,Environment and Place,Transport-Related Expenditure
26/10/2016,3845430,780,CVA Ledbury & District,201707,Environment and Place,Transport-Related Expenditure
28/10/2016,3845897,"1,718.00",Complete Security & Fire Protection Ltd,201707,Schools,Supplies & Services
28/10/2016,3845899,"1,667.50",Complete Security & Fire Protection Ltd,201707,Schools,Supplies & Services
28/10/2016,3845900,"1,927.00",Complete Security & Fire Protection Ltd,201707,Schools,Supplies & Services
19/10/2016,3844415,541.75,Coordination Group Publications Ltd,201707,Schools,Supplies & Services
05/10/2016,3839295,"3,500.00",Servelec Corelogic Ltd,201707,Integrated Commissioning,Capital Expenditure
07/10/2016,3842008,439.84,Countrywide Farmers,201707,Education and Commissioning,Supplies & Services
21/10/2016,2161953,977.8,Cradley Primary School Imprest,201707,Schools,Supplies & Services
21/10/2016,2161822,458.33,Herefordshire Marches Federation Sutton Primary Academy,201707,Central Childrens Directorate Costs,Support Services
21/10/2016,2161843,458.33,Herefordshire Marches Federation Sutton Primary Academy,201707,Central Childrens Directorate Costs,Support Services
14/10/2016,3843192,"1,470.00",Create Development Ltd,201707,Schools,Supplies & Services
21/10/2016,3844049,"1,470.00",Create Development Ltd,201707,Schools,Supplies & Services
26/10/2016,3844930,"1,470.00",Create Development Ltd,201707,Schools,Supplies & Services
12/10/2016,3842911,"10,541.66",Crossroads Care-Forest Of Dean & Hfds,201707,Education and Commissioning,Third Party Payments
21/10/2016,3844258,"80,478.50",2Gether NHS Foundation Trust,201707,Commissioning Adults,Third Party Payments
21/10/2016,2161641,458.33,Ashperton Primary Academy,201707,Central Childrens Directorate Costs,Support Services
21/10/2016,2161709,458.33,Ashperton Primary Academy,201707,Central Childrens Directorate Costs,Support Services
21/10/2016,2161778,458.33,Ashperton Primary Academy,201707,Central Childrens Directorate Costs,Support Services
21/10/2016,2161779,458.33,Ashperton Primary Academy,201707,Central Childrens Directorate Costs,Support Services
05/10/2016,3841958,673.03,D & D Network Services Ltd,201707,Schools,Supplies & Services
05/10/2016,3842240,"3,163.32",D & D Network Services Ltd,201707,Schools,Supplies & Services
19/10/2016,3843175,"4,904.00",D & D Network Services Ltd,201707,Schools,Supplies & Services
21/10/2016,3844010,575,D & D Network Services Ltd,201707,Schools,Supplies & Services
21/10/2016,2161660,458.33,Herefordshire Marches Federation-Kings Caple,201707,Central Childrens Directorate Costs,Support Services
19/10/2016,3844417,630.17,MBE Books Ltd,201707,Schools,Supplies & Services
12/10/2016,2157744,"1,151.82",Madley Primary School Imprest A/C,201707,Schools,Supplies & Services
26/10/2016,3845373,"1,375.00",Designumbrella,201707,Environment and Place,Supplies & Services
26/10/2016,3845374,750,Designumbrella,201707,Environment and Place,Supplies & Services
26/10/2016,3845375,"1,000.00",Designumbrella,201707,Environment and Place,Supplies & Services
26/10/2016,3845186,"5,000.00",Neopost Ltd,201707,Resources,Supplies & Services
21/10/2016,3844019,"19,647.50",Enviroment Agency,201707,Resources,Third Party Payments
20/10/2016,2161096,"1,399.87",Dore Community Transport,201707,Environment and Place,Supplies & Services
21/10/2016,2161730,458.33,Brockhampton Primary School (Academy),201707,Central Childrens Directorate Costs,Support Services
02/11/2016,3845643,"1,368.90",REDACTED,201707,Communities,Supplies & Services
21/10/2016,3843980,500,REDACTED,201707,Schools,Supplies & Services
21/10/2016,3843833,"17,648.80",DRM (Bromyard) Ltd,201707,Environment and Place,Third Party Payments
14/10/2016,3843253,"29,457.22",DRM (Bromyard) Ltd,201707,Environment and Place,Transport-Related Expenditure
19/10/2016,3844225,"1,200.00",DRM (Bromyard) Ltd,201707,Schools,Transport-Related Expenditure
12/10/2016,3842827,"2,610.00",Dukes Travel Ltd,201707,Environment and Place,Transport-Related Expenditure
07/10/2016,3842135,448.58,E.On,201707,Environment and Place,Premises-Related Expenditure
19/10/2016,3844053,639.75,Eardisland Parish Council,201707,Environment and Place,Third Party Payments
12/10/2016,3842727,"1,470.00",ECHO,201707,Education and Commissioning,Supplies & Services
28/10/2016,3845832,684,Education City Ltd,201707,Schools,Supplies & Services
07/10/2016,3842346,"2,500.00",REDACTED,201707,Communities,Supplies & Services
07/10/2016,3842713,450,Edutech Solutions Ltd,201707,Schools,Supplies & Services
19/10/2016,3844090,"1,005.64",Edutech Solutions Ltd,201707,Schools,Supplies & Services
21/10/2016,3844191,"2,932.50",Edutech Solutions Ltd,201707,Schools,Supplies & Services
28/10/2016,3845822,830,Edutech Solutions Ltd,201707,Schools,Supplies & Services
28/10/2016,3845821,"1,866.00",Edutech Solutions Ltd,201707,Schools,Support Services
21/10/2016,3843732,500,The National Trust,201707,Schools,Supplies & Services
26/10/2016,3844817,517.5,Elklan,201707,Education and Commissioning,Supplies & Services
26/10/2016,3845234,661.88,Environmental Scientifics Group Ltd,201707,Environment and Place,Supplies & Services
28/10/2016,3845236,554.9,Environmental Scientifics Group Ltd,201707,Environment and Place,Supplies & Services
07/10/2016,3842387,710.1,Discovery Education Europe Ltd,201707,Schools,Supplies & Services
21/10/2016,3844030,"1,041.50",Discovery Education Europe Ltd,201707,Schools,Supplies & Services
21/10/2016,3844664,755.75,Discovery Education Europe Ltd,201707,Schools,Supplies & Services
26/10/2016,3845550,"3,710.75",Discovery Education Europe Ltd,201707,Schools,Supplies & Services
14/10/2016,3843553,500,Eteach.Com,201707,Schools,Employees
14/10/2016,3842990,"1,827.00",Ewyas Harold GPC,201707,Environment and Place,Third Party Payments
19/10/2016,3843162,"7,593.75",Experian Ltd,201707,Public Health,Supplies & Services
05/10/2016,3841935,"5,049.44",Facultatieve Technologies Limited,201707,Resources,Premises-Related Expenditure
26/10/2016,3844811,875,Facultatieve Technologies Limited,201707,Resources,Premises-Related Expenditure
28/10/2016,3845703,700,Falconry Services,201707,Environment and Place,Premises-Related Expenditure
07/10/2016,3842337,"4,833.33",Festival Housing Group,201707,Physical Disabilities,Third Party Payments
21/10/2016,3843927,817.91,Findel Education Limited,201707,Schools,Supplies & Services
26/10/2016,3845132,"333,576.48",Fcc Environment Services (uk) Ltd,201707,Environment and Place,Third Party Payments
07/10/2016,3842762,"9,812.30",Forest Of Dean District Council,201707,Environment and Place,Support Services
19/10/2016,3843273,990,Frome Private Hire Cars,201707,Environment and Place,Transport-Related Expenditure
19/10/2016,3843085,489.96,Fuelgenie Business Account,201707,Communities,Transport-Related Expenditure
21/10/2016,3843910,650,REDACTED,201707,Schools,Premises-Related Expenditure
12/10/2016,3842659,746.6,George Youngs Coaches Ltd (Factor A/C),201707,Schools,Transport-Related Expenditure
05/10/2016,3841719,469.52,REDACTED,201707,Environment and Place,Supplies & Services
05/10/2016,3842465,497.49,REDACTED,201707,Environment and Place,Supplies & Services
05/10/2016,3842466,497.49,REDACTED,201707,Environment and Place,Supplies & Services
26/10/2016,3844804,833.1,REDACTED,201707,Environment and Place,Supplies & Services
26/10/2016,3845312,441.16,REDACTED,201707,Environment and Place,Supplies & Services
19/10/2016,3844437,992.58,GL Education Group Ltd,201707,Schools,Supplies & Services
07/10/2016,3842416,734,Greenfields Garden Services Ltd,201707,Schools,Premises-Related Expenditure
21/10/2016,3844636,"13,978.00",Greenfields Garden Services Ltd,201707,Schools Devolved Capital,Capital Expenditure
28/10/2016,3845625,476,H & H Motors,201707,Environment and Place,Third Party Payments
14/10/2016,3843256,"2,862.00",H & H Motors,201707,Environment and Place,Transport-Related Expenditure
14/10/2016,3843257,"2,500.00",H & H Motors,201707,Environment and Place,Transport-Related Expenditure
14/10/2016,3843258,"3,339.00",H & H Motors,201707,Environment and Place,Transport-Related Expenditure
14/10/2016,3843259,"2,808.00",H & H Motors,201707,Environment and Place,Transport-Related Expenditure
07/10/2016,3842316,450.62,H Mason & Son Ltd,201707,Schools,Premises-Related Expenditure
26/10/2016,3845170,"1,920.20",Halarose Ltd,201707,Communities,Supplies & Services
05/10/2016,3841907,618,Halo Leisure Services Ltd,201707,Schools,Premises-Related Expenditure
05/10/2016,3842058,478,Halo Leisure Services Ltd,201707,Schools,Premises-Related Expenditure
05/10/2016,3842354,700,Halo Leisure Services Ltd,201707,Schools,Premises-Related Expenditure
05/10/2016,3842355,515,Halo Leisure Services Ltd,201707,Schools,Premises-Related Expenditure
14/10/2016,3843191,618,Halo Leisure Services Ltd,201707,Schools,Premises-Related Expenditure
19/10/2016,3843055,"1,339.00",Halo Leisure Services Ltd,201707,Schools,Premises-Related Expenditure
19/10/2016,3843078,433,Halo Leisure Services Ltd,201707,Schools,Premises-Related Expenditure
19/10/2016,3843423,515,Halo Leisure Services Ltd,201707,Schools,Premises-Related Expenditure
19/10/2016,3843642,669.5,Halo Leisure Services Ltd,201707,Schools,Premises-Related Expenditure
19/10/2016,3843643,663,Halo Leisure Services Ltd,201707,Schools,Premises-Related Expenditure
19/10/2016,3844422,866,Halo Leisure Services Ltd,201707,Schools,Premises-Related Expenditure
21/10/2016,3843700,669.5,Halo Leisure Services Ltd,201707,Schools,Premises-Related Expenditure
26/10/2016,3844785,433,Halo Leisure Services Ltd,201707,Schools,Premises-Related Expenditure
26/10/2016,3844899,433,Halo Leisure Services Ltd,201707,Schools,Premises-Related Expenditure
05/10/2016,3842354,495,Halo Leisure Services Ltd,201707,Schools,Supplies & Services
28/10/2016,3845684,592.53,Harpercollins Publishers,201707,Schools,Supplies & Services
21/10/2016,3844669,600,Bearwood Associates Ltd,201707,Growth,Supplies & Services
19/10/2016,3843145,"2,222.20",Hays Specialist Recruitment Ltd,201707,Environment and Place,Third Party Payments
19/10/2016,3843146,"2,222.20",Hays Specialist Recruitment Ltd,201707,Environment and Place,Third Party Payments
19/10/2016,3843147,"2,222.20",Hays Specialist Recruitment Ltd,201707,Environment and Place,Third Party Payments
19/10/2016,3843148,"2,777.75",Hays Specialist Recruitment Ltd,201707,Environment and Place,Third Party Payments
26/10/2016,3844798,"2,222.20",Hays Specialist Recruitment Ltd,201707,Environment and Place,Third Party Payments
26/10/2016,3844799,"2,222.20",Hays Specialist Recruitment Ltd,201707,Environment and Place,Third Party Payments
26/10/2016,3844800,"2,222.20",Hays Specialist Recruitment Ltd,201707,Environment and Place,Third Party Payments
26/10/2016,3844805,"2,222.20",Hays Specialist Recruitment Ltd,201707,Environment and Place,Third Party Payments
26/10/2016,3844806,"2,222.20",Hays Specialist Recruitment Ltd,201707,Environment and Place,Third Party Payments
21/10/2016,3844342,855,Heaven Academy,201707,Schools,Supplies & Services
26/10/2016,3845133,"13,293.00",Herdman Coaches Ltd,201707,Environment and Place,Transport-Related Expenditure
21/10/2016,3844018,"528,606.52",Hereford & Worc Fire & Rescue Service,201707,Collection Fund,Collection Fund Accounts
21/10/2016,3844017,"34,012.00",Hereford & Worc Fire & Rescue Service,201707,Consolidated Revenue Account,Supplies & Services
21/10/2016,3844690,"2,439.36",Wye Valley NHS Trust,201707,Communities,Supplies & Services
26/10/2016,3845393,"93,044.00",Wye Valley NHS Trust,201707,Director and Management,Third Party Payments
20/10/2016,2161101,"42,778.00",Wye Valley NHS Trust,201707,Public Health,Third Party Payments
20/10/2016,2161103,"193,735.00",Wye Valley NHS Trust,201707,Public Health,Third Party Payments
21/10/2016,3844492,"191,962.00",Wye Valley NHS Trust,201707,Public Health,Third Party Payments
26/10/2016,3845385,"8,331.00",Wye Valley NHS Trust,201707,Public Health,Third Party Payments
26/10/2016,3845386,"155,390.00",Wye Valley NHS Trust,201707,Public Health,Third Party Payments
26/10/2016,3845387,"155,390.00",Wye Valley NHS Trust,201707,Public Health,Third Party Payments
26/10/2016,3845388,"155,390.00",Wye Valley NHS Trust,201707,Public Health,Third Party Payments
26/10/2016,3845389,"42,780.00",Wye Valley NHS Trust,201707,Public Health,Third Party Payments
26/10/2016,3845390,"42,780.00",Wye Valley NHS Trust,201707,Public Health,Third Party Payments
26/10/2016,3845391,"155,390.00",Wye Valley NHS Trust,201707,Public Health,Third Party Payments
26/10/2016,3845392,"7,980.00",Wye Valley NHS Trust,201707,Public Health,Third Party Payments
26/10/2016,3845403,"114,277.00",Wye Valley NHS Trust,201707,Public Health,Third Party Payments
28/10/2016,3845708,"1,669.50",Wye Valley NHS Trust,201707,Public Health,Third Party Payments
28/10/2016,3845710,"1,667.00",Wye Valley NHS Trust,201707,Public Health,Third Party Payments
28/10/2016,3845711,"1,669.50",Wye Valley NHS Trust,201707,Public Health,Third Party Payments
26/10/2016,3844810,"3,545.00",Wye Valley NHS Trust,201707,Resources,Third Party Payments
19/10/2016,3843657,450.37,Wye Valley NHS Trust,201707,Schools,Supplies & Services
26/10/2016,3845143,589.59,Wye Valley NHS Trust,201707,Schools,Supplies & Services
07/10/2016,3842362,"2,125.00",Hereford Pedicabs Ltd,201707,Communities,Supplies & Services
21/10/2016,3844633,850,Webanywhere Limited,201707,Schools,Supplies & Services
21/10/2016,3844341,"68,750.00",Herefordshire Carers Support Ltd,201707,Commissioning Adults,Supplies & Services
02/11/2016,3846121,"10,000.00",Herefordshire Carers Support Ltd,201707,Director and Management,Third Party Payments
21/10/2016,3843690,420,Herefordshire Football Association,201707,Schools,Supplies & Services
12/10/2016,3842627,"20,000.00",Herefordshire Group Training Assoc Ltd,201707,Resources,Premises-Related Expenditure
21/10/2016,3844002,"7,272.00",Herefordshire Headway,201707,Commissioning Adults,Supplies & Services
14/10/2016,3843030,"35,000.00",Herefordshire Housing Ltd,201707,Commissioning Adults,Third Party Payments
26/10/2016,3843064,"1,106.36",Herefordshire Housing Ltd,201707,Education and Commissioning,Supplies & Services
21/10/2016,3844144,480.89,Herefordshire Housing Ltd,201707,Schools,Premises-Related Expenditure
07/10/2016,3842343,"3,015.60",Herefordshire Housing Ltd,201707,Transformation and safeguarding,Supplies & Services
28/10/2016,3845694,"2,051.28",Herefordshire Housing Ltd,201707,Transformation and safeguarding,Supplies & Services
12/10/2016,3842921,"30,846.00",The Herefordshire Wildlife Trust Ltd,201707,Environment and Place,Transfer Payments
26/10/2016,3845546,550,The Herefordshire Wildlife Trust Ltd,201707,Schools,Supplies & Services
26/10/2016,3844885,"36,000.00",HVOSS,201707,Commissioning Adults,Third Party Payments
20/10/2016,2161098,"2,591.10",HVOSS,201707,Environment and Place,Supplies & Services
26/10/2016,3845213,720,High Town Radio Taxi Group,201707,Environment and Place,Transport-Related Expenditure
14/10/2016,3843449,968.98,Highground Maintenance Limited,201707,Schools,Premises-Related Expenditure
21/10/2016,3844266,658.57,Highground Maintenance Limited,201707,Schools,Premises-Related Expenditure
28/10/2016,3845762,"1,462.91",Highground Maintenance Limited,201707,Schools,Premises-Related Expenditure
28/10/2016,3845873,968.98,Highground Maintenance Limited,201707,Schools,Premises-Related Expenditure
28/10/2016,3845874,511.38,Highground Maintenance Limited,201707,Schools,Premises-Related Expenditure
21/10/2016,3844711,"1,320.00",HM Courts & Tribunals Service,201707,Resources,Supplies & Services
21/10/2016,3844292,"17,499.00",Home Start Herefordshire,201707,Education and Commissioning,Third Party Payments
07/10/2016,3842593,"26,195.40",Hope For Children & Their Families Ltd,201707,Education and Commissioning,Third Party Payments
05/10/2016,3842511,"4,314.98",Hope For Children & Their Families Ltd,201707,Resources,Premises-Related Expenditure
05/10/2016,3842060,450,Seaquarium,201707,Schools,Supplies & Services
12/10/2016,3842863,"2,027.70",I & S Coaches,201707,Environment and Place,Transport-Related Expenditure
14/10/2016,3843550,591.2,IDN Supplies Ltd,201707,Schools,Supplies & Services
21/10/2016,3843866,"503,991.27",Integral UK Ltd,201707,Holding Codes,Holding Codes
05/10/2016,3842420,"1,663.20",J P Catering,201707,Schools,Supplies & Services
05/10/2016,3842490,"1,465.20",J P Catering,201707,Schools,Supplies & Services
12/10/2016,3842625,816.2,J P Catering,201707,Schools,Supplies & Services
14/10/2016,3843100,"1,357.40",J P Catering,201707,Schools,Supplies & Services
19/10/2016,3843442,"1,344.20",J P Catering,201707,Schools,Supplies & Services
19/10/2016,3843444,930,J P Catering,201707,Schools,Supplies & Services
21/10/2016,3844651,"1,370.60",J P Catering,201707,Schools,Supplies & Services
26/10/2016,3845246,"1,115.40",J P Catering,201707,Schools,Supplies & Services
28/10/2016,3845603,770,J P Catering,201707,Schools,Supplies & Services
28/10/2016,3845604,950.4,J P Catering,201707,Schools,Supplies & Services
21/10/2016,3844263,"1,250.00",Point Thirteen Media Ltd,201707,Schools,Employees
21/10/2016,3843807,726.73,J.A.K Water Systems Ltd,201707,Schools,Premises-Related Expenditure
19/10/2016,3843574,"1,219.50",Herefordshire Rural Hub CIC,201707,Growth,Transfer Payments
28/10/2016,3845779,480,National Grid Gas Plc,201707,Growth Capital,Capital Expenditure
12/10/2016,3842859,900,JMC Monmouth Ltd,201707,Environment and Place,Transport-Related Expenditure
12/10/2016,3842860,"2,160.00",JMC Monmouth Ltd,201707,Environment and Place,Transport-Related Expenditure
12/10/2016,3842861,"11,088.00",JMC Monmouth Ltd,201707,Environment and Place,Transport-Related Expenditure
12/10/2016,3842900,"2,160.00",JMC Monmouth Ltd,201707,Environment and Place,Transport-Related Expenditure
12/10/2016,3842901,"1,710.00",JMC Monmouth Ltd,201707,Environment and Place,Transport-Related Expenditure
12/10/2016,3842641,"2,095.00",JMC Monmouth Ltd,201707,Learning Disabilities,Transport-Related Expenditure
12/10/2016,3842644,"1,336.71",JMC Monmouth Ltd,201707,Learning Disabilities,Transport-Related Expenditure
21/10/2016,3843853,"1,330.00",JMP Consultants Ltd,201707,Environment and Place,Third Party Payments
05/10/2016,3842569,"4,368.00",REDACTED,201707,Housing & Independent Living Capital,Capital Expenditure
12/10/2016,3843303,"3,780.00",REDACTED,201707,Housing & Independent Living Capital,Capital Expenditure
12/10/2016,3843304,825.4,REDACTED,201707,Housing & Independent Living Capital,Capital Expenditure
21/10/2016,2161505,458.33,John Kyrle High School,201707,Central Childrens Directorate Costs,Support Services
21/10/2016,2161739,719.17,John Kyrle High School,201707,Central Childrens Directorate Costs,Support Services
21/10/2016,2161740,458.33,John Kyrle High School,201707,Central Childrens Directorate Costs,Support Services
21/10/2016,2161818,458.33,John Kyrle High School,201707,Central Childrens Directorate Costs,Support Services
26/10/2016,3845256,"1,309.00",BSI (British Standards Institution),201707,Environment and Place,Supplies & Services
21/10/2016,2161600,458.33,John Masefield High School (Academy),201707,Central Childrens Directorate Costs,Support Services
21/10/2016,2161690,458.33,John Masefield High School (Academy),201707,Central Childrens Directorate Costs,Support Services
21/10/2016,2161729,458.33,John Masefield High School (Academy),201707,Central Childrens Directorate Costs,Support Services
21/10/2016,2161759,458.33,John Masefield High School (Academy),201707,Central Childrens Directorate Costs,Support Services
21/10/2016,2161831,458.33,John Masefield High School (Academy),201707,Central Childrens Directorate Costs,Support Services
21/10/2016,2161856,916.66,John Masefield High School (Academy),201707,Central Childrens Directorate Costs,Support Services
05/10/2016,3841928,720.2,John Masefield High School (Academy),201707,Education and Commissioning,Employees
05/10/2016,3841929,760.7,John Masefield High School (Academy),201707,Education and Commissioning,Employees
21/10/2016,3844276,720.2,John Masefield High School (Academy),201707,Education and Commissioning,Employees
21/10/2016,2161644,458.33,Herefordshire Marches Federation-Lord Scudamore,201707,Central Childrens Directorate Costs,Support Services
21/10/2016,2161793,458.33,Herefordshire Marches Federation-Lord Scudamore,201707,Central Childrens Directorate Costs,Support Services
05/10/2016,3842282,"1,260.00",Herefordshire Marches Federation-Lord Scudamore,201707,Schools,Supplies & Services
26/10/2016,3845124,495,Herefordshire Marches Federation-Lord Scudamore,201707,Schools,Supplies & Services
21/10/2016,2161630,458.33,Kingstone High School (Academy),201707,Central Childrens Directorate Costs,Support Services
05/10/2016,3842512,"1,241.10",REDACTED,201707,Environment and Place,Transport-Related Expenditure
12/10/2016,3842647,"3,789.94",REDACTED,201707,Environment and Place,Transport-Related Expenditure
05/10/2016,3842379,586.79,REDACTED,201707,Schools,Supplies & Services
07/10/2016,3842599,432.69,REDACTED,201707,Schools,Supplies & Services
19/10/2016,3843073,585,REDACTED,201707,Schools,Supplies & Services
21/10/2016,3843707,726.07,REDACTED,201707,Schools,Supplies & Services
02/11/2016,3846116,436,REDACTED,201707,Schools,Supplies & Services
02/11/2016,3846118,511,REDACTED,201707,Schools,Supplies & Services
14/10/2016,3843000,"1,031.00",Kentchurch Parish Council (Lengthsman A/C),201707,Environment and Place,Third Party Payments
14/10/2016,3842991,"1,182.00",Kimbolton Parish Council,201707,Environment and Place,Third Party Payments
07/10/2016,3842606,600,Kimbolton Parish Council,201707,Schools,Premises-Related Expenditure
21/10/2016,3844109,425,Society of Chief Librarians,201707,Communities,Supplies & Services
21/10/2016,2161895,"3,208.31",Kingstone & Thruxton Primary School (Academy),201707,Central Childrens Directorate Costs,Support Services
28/10/2016,3845771,"1,676.09",Kingstone & Thruxton Primary School (Academy),201707,Central Childrens Directorate Costs,Support Services
26/10/2016,3845156,"1,211.77",L D Preece & Son Builders Ltd,201707,Resources,Premises-Related Expenditure
26/10/2016,3845157,"5,002.09",L D Preece & Son Builders Ltd,201707,Resources,Premises-Related Expenditure
19/10/2016,3844383,"2,045.40",Lady Hawkins School Caterers,201707,Schools,Supplies & Services
26/10/2016,3845404,"2,230.80",Lady Hawkins School Caterers,201707,Schools,Supplies & Services
28/10/2016,3843225,"7,594.00",Ashfords LLP,201707,Communities,Supplies & Services
12/10/2016,2157257,"6,033.87",Ledbury Primary School Imprest,201707,Schools,Supplies & Services
07/10/2016,3842670,543.69,Leominster Primary School Imprest,201707,Schools,Premises-Related Expenditure
07/10/2016,3842670,525.59,Leominster Primary School Imprest,201707,Schools,Supplies & Services
05/10/2016,3842513,"1,890.00",Leominster Taxis & Travel,201707,Environment and Place,Transport-Related Expenditure
05/10/2016,3842514,"3,294.00",Leominster Taxis & Travel,201707,Environment and Place,Transport-Related Expenditure
12/10/2016,3842903,"1,251.00",Leominster Taxis & Travel,201707,Environment and Place,Transport-Related Expenditure
12/10/2016,3842904,900,Leominster Taxis & Travel,201707,Environment and Place,Transport-Related Expenditure
28/10/2016,3845274,"98,310.30",Livability,201707,Physical Disabilities,Third Party Payments
19/10/2016,3844282,"2,241.20",Llangarron Parish Council,201707,Environment and Place,Third Party Payments
07/10/2016,3842003,455.01,Lord Combustion Services Ltd,201707,Schools,Premises-Related Expenditure
26/10/2016,3844389,"2,997.05",Lord Combustion Services Ltd,201707,Schools,Premises-Related Expenditure
26/10/2016,3844929,811.3,Lord Combustion Services Ltd,201707,Schools,Premises-Related Expenditure
12/10/2016,3842938,605,Lucton School,201707,Schools,Premises-Related Expenditure
12/10/2016,3842966,525,Luctonians Sports Club Ltd,201707,Schools,Supplies & Services
05/10/2016,3842009,"4,187.85",Lugg Valley Primrose Travel Ltd,201707,Environment and Place,Third Party Payments
21/10/2016,3843851,825.5,Lugg Valley Primrose Travel Ltd,201707,Environment and Place,Third Party Payments
26/10/2016,3845290,"10,457.61",Lugg Valley Primrose Travel Ltd,201707,Environment and Place,Third Party Payments
26/10/2016,3845366,599.7,Lugg Valley Primrose Travel Ltd,201707,Environment and Place,Third Party Payments
05/10/2016,3841851,"1,176.46",Lugg Valley Primrose Travel Ltd,201707,Environment and Place,Transport-Related Expenditure
12/10/2016,3842729,"29,841.08",Lugg Valley Primrose Travel Ltd,201707,Environment and Place,Transport-Related Expenditure
19/10/2016,3844304,585,Lugg Valley Primrose Travel Ltd,201707,Schools,Supplies & Services
21/10/2016,2161824,719.17,Wigmore Primary School (Academy),201707,Central Childrens Directorate Costs,Support Services
21/10/2016,2161503,458.33,Lady Hawkins School (Academy),201707,Central Childrens Directorate Costs,Support Services
21/10/2016,2161645,458.33,Lady Hawkins School (Academy),201707,Central Childrens Directorate Costs,Support Services
21/10/2016,2161840,458.33,Lady Hawkins School (Academy),201707,Central Childrens Directorate Costs,Support Services
14/10/2016,3843588,500,Lady Hawkins School (Academy),201707,Education and Commissioning,Transfer Payments
05/10/2016,3842126,"3,850.62",Lady Hawkins School (Academy),201707,Resources,Premises-Related Expenditure
19/10/2016,2160757,"1,327.63",Luston C P School Imprest,201707,Schools,Supplies & Services
12/10/2016,3842889,"2,700.00",M&S Coaches Of Hereford Limited,201707,Environment and Place,Transport-Related Expenditure
12/10/2016,3842890,"2,484.00",M&S Coaches Of Hereford Limited,201707,Environment and Place,Transport-Related Expenditure
12/10/2016,3842891,"3,000.00",M&S Coaches Of Hereford Limited,201707,Environment and Place,Transport-Related Expenditure
12/10/2016,3842892,"3,400.00",M&S Coaches Of Hereford Limited,201707,Environment and Place,Transport-Related Expenditure
12/10/2016,3842894,"2,700.00",M&S Coaches Of Hereford Limited,201707,Environment and Place,Transport-Related Expenditure
12/10/2016,3842895,"2,760.00",M&S Coaches Of Hereford Limited,201707,Environment and Place,Transport-Related Expenditure
21/10/2016,3844029,"1,080.00",M&S Coaches Of Hereford Limited,201707,Schools,Transport-Related Expenditure
21/10/2016,3844819,"1,331.00",Madley Parish Council,201707,Environment and Place,Third Party Payments
21/10/2016,3844717,"3,246.00",QEHC Academy Trust T/A Queen Elizabeth Humanities College,201707,Education and Commissioning,Support Services
21/10/2016,3844281,"4,583.33",Marches Family Network,201707,Education and Commissioning,Third Party Payments
26/10/2016,3845271,"4,583.33",Marches Family Network,201707,Education and Commissioning,Third Party Payments
12/10/2016,3842661,"2,056.73",Marches Family Network,201707,Public Health,Transfer Payments
26/10/2016,3845338,"30,074.51",Marlbrook  Primary School,201707,Children & Young People Capital,Capital Expenditure
21/10/2016,2161433,777,Marlbrook  Primary School,201707,Children & Young People Capital,Capital Income
05/10/2016,3842529,"12,031.60",Marsh Ltd,201707,Resources,Supplies & Services
05/10/2016,3842530,"1,868.46",Marsh Ltd,201707,Resources,Supplies & Services
05/10/2016,3842533,"4,899.52",Marsh Ltd,201707,Resources,Supplies & Services
05/10/2016,3842534,471.24,Marsh Ltd,201707,Resources,Supplies & Services
05/10/2016,3842535,"48,510.00",Marsh Ltd,201707,Resources,Supplies & Services
05/10/2016,3842536,"9,240.00",Marsh Ltd,201707,Resources,Supplies & Services
05/10/2016,3842537,"1,489.95",Marsh Ltd,201707,Resources,Supplies & Services
05/10/2016,3842539,"7,269.90",Marsh Ltd,201707,Resources,Supplies & Services
05/10/2016,3842541,"7,700.00",Marsh Ltd,201707,Resources,Supplies & Services
07/10/2016,3842528,"19,882.06",Marsh Ltd,201707,Resources,Supplies & Services
07/10/2016,3842801,"6,610.45",Marsh Ltd,201707,Resources,Supplies & Services
12/10/2016,3842540,"330,180.51",Marsh Ltd,201707,Resources,Supplies & Services
26/10/2016,3845171,"9,070.90",Review Consulting Ltd,201707,Safeguarding and Family Support,Supplies & Services
26/10/2016,3845514,"4,455.00",Dudley Fencing,201707,Schools Devolved Capital,Capital Expenditure
05/10/2016,3841916,779.96,Mastercraft Cycles,201707,Environment and Place,Supplies & Services
12/10/2016,3842813,"1,157.17",Mastercraft Cycles,201707,Environment and Place,Supplies & Services
26/10/2016,3845154,597.71,Mastercraft Cycles,201707,Holding Codes,Holding Codes
26/10/2016,3844843,420,Mathon Parish Council,201707,Environment and Place,Third Party Payments
28/10/2016,3845596,433,Mathon Parish Council,201707,Environment and Place,Third Party Payments
05/10/2016,3842504,525.6,REDACTED,201707,Schools,Premises-Related Expenditure
07/10/2016,3842602,"1,095.25",REDACTED,201707,Schools,Premises-Related Expenditure
07/10/2016,3842715,"1,095.25",REDACTED,201707,Schools,Premises-Related Expenditure
14/10/2016,3842982,"1,138.15",REDACTED,201707,Schools,Premises-Related Expenditure
14/10/2016,3842984,"1,225.57",REDACTED,201707,Schools,Premises-Related Expenditure
14/10/2016,3843235,532.08,REDACTED,201707,Schools,Premises-Related Expenditure
19/10/2016,3843080,"1,000.42",REDACTED,201707,Schools,Premises-Related Expenditure
19/10/2016,3843495,887.08,REDACTED,201707,Schools,Premises-Related Expenditure
19/10/2016,3843521,884.38,REDACTED,201707,Schools,Premises-Related Expenditure
19/10/2016,3843632,897.21,REDACTED,201707,Schools,Premises-Related Expenditure
19/10/2016,3843665,465,REDACTED,201707,Schools,Premises-Related Expenditure
21/10/2016,3843716,956.75,REDACTED,201707,Schools,Premises-Related Expenditure
21/10/2016,3844345,957.92,REDACTED,201707,Schools,Premises-Related Expenditure
21/10/2016,3844346,"1,087.50",REDACTED,201707,Schools,Premises-Related Expenditure
21/10/2016,3844550,"1,065.63",REDACTED,201707,Schools,Premises-Related Expenditure
21/10/2016,3844624,738.33,REDACTED,201707,Schools,Premises-Related Expenditure
21/10/2016,3844430,548.5,MFG Solicitors LLP,201707,Resources,Supplies & Services
05/10/2016,3842114,535.75,Infotone Imaging Supplies,201707,Schools,Supplies & Services
28/10/2016,3845803,490,Viney Hill Christian Adventure Centre,201707,Schools,Supplies & Services
21/10/2016,3843977,478,Micro Librarian Systems (MLS),201707,Schools,Supplies & Services
12/10/2016,3842667,960.25,Microdec Plc,201707,Education and Commissioning,Supplies & Services
28/10/2016,3845480,"4,675.55",Midland Heart,201707,Learning Disabilities,Supplies & Services
28/10/2016,3845480,"5,108.00",Midland Heart,201707,Learning Disabilities,Third Party Payments
12/10/2016,3842969,776.51,Midshire Business Systems Ltd,201707,Schools,Supplies & Services
21/10/2016,3843813,579.41,Midshire Business Systems Ltd,201707,Schools,Supplies & Services
21/10/2016,2161497,458.33,Holmer C of E Academy,201707,Central Childrens Directorate Costs,Support Services
21/10/2016,2161786,458.33,Holmer C of E Academy,201707,Central Childrens Directorate Costs,Support Services
21/10/2016,2161847,839.03,Holmer C of E Academy,201707,Central Childrens Directorate Costs,Support Services
26/10/2016,3845358,535,Holmer C of E Academy,201707,Education and Commissioning,Support Services
05/10/2016,3842516,"1,188.00",Minibus Services,201707,Learning Disabilities,Transport-Related Expenditure
05/10/2016,3842517,"1,320.00",Minibus Services,201707,Learning Disabilities,Transport-Related Expenditure
12/10/2016,3842646,"1,100.00",Minibus Services,201707,Physical Disabilities,Transport-Related Expenditure
19/10/2016,3844416,"6,044.50",CS Catering Equipment Ltd.,201707,Schools Devolved Capital,Capital Expenditure
21/10/2016,3843935,"1,011.08",Monnow Electrical Services Ltd,201707,Resources,Premises-Related Expenditure
05/10/2016,3842105,"1,529.76",Monnow Electrical Services Ltd,201707,Schools,Premises-Related Expenditure
05/10/2016,3842106,"1,866.86",Monnow Electrical Services Ltd,201707,Schools,Premises-Related Expenditure
19/10/2016,3843659,"2,475.86",Moorfield House Surgery,201707,Environment and Place,Supplies & Services
12/10/2016,3842754,475.66,Morleys Of Bicester Ltd,201707,Schools,Premises-Related Expenditure
21/10/2016,3844710,"5,426.00",REDACTED,201707,Housing & Independent Living Capital,Capital Expenditure
21/10/2016,3844257,"5,408.05",Alzheimer's Society,201707,Mental Health,Supplies & Services
19/10/2016,3843503,900,REDACTED,201707,Environment and Place,Supplies & Services
28/10/2016,3845675,418,REDACTED,201707,Schools,Supplies & Services
21/10/2016,3844709,"3,346.90",REDACTED,201707,Housing & Independent Living Capital,Capital Expenditure
05/10/2016,3842509,880,REDACTED,201707,Learning Disabilities,Transport-Related Expenditure
07/10/2016,3842515,800,REDACTED,201707,Learning Disabilities,Transport-Related Expenditure
05/10/2016,3842572,"4,395.70",Hopton Building Services Ltd,201707,Housing & Independent Living Capital,Capital Expenditure
21/10/2016,3844708,"4,634.25",Hopton Building Services Ltd,201707,Housing & Independent Living Capital,Capital Expenditure
02/11/2016,3846127,"1,138.00",Hopton Building Services Ltd,201707,Housing & Independent Living Capital,Capital Expenditure
05/10/2016,3841334,682,Hoople Ltd,201707,Education and Commissioning,Supplies & Services
19/10/2016,3843867,"1,458.33",Hoople Ltd,201707,Education and Commissioning,Supplies & Services
28/10/2016,3843868,543.9,Hoople Ltd,201707,Education and Commissioning,Supplies & Services
05/10/2016,3841932,"2,200.00",Hoople Ltd,201707,Education and Commissioning,Third Party Payments
05/10/2016,3841297,525,Hoople Ltd,201707,Public Health,Supplies & Services
14/10/2016,3843124,530.56,Hoople Ltd,201707,Resources,Employees
28/10/2016,3845262,"9,610.00",Hoople Ltd,201707,Resources,Premises-Related Expenditure
05/10/2016,3841391,"4,613.00",Hoople Ltd,201707,Resources,Supplies & Services
05/10/2016,3824393,"56,200.00",Hoople Ltd,201707,Resources,Supplies & Services
19/10/2016,3843130,"2,575.00",Hoople Ltd,201707,Resources,Supplies & Services
26/10/2016,3843129,"10,450.00",Hoople Ltd,201707,Resources,Supplies & Services
26/10/2016,3845263,"1,465.10",Hoople Ltd,201707,Resources,Supplies & Services
02/11/2016,3845265,"7,380.00",Hoople Ltd,201707,Resources Capital,Capital Expenditure
14/10/2016,3843127,450,Hoople Ltd,201707,Safeguarding and Family Support,Employees
14/10/2016,3841414,"16,250.00",Hoople Ltd,201707,Safeguarding and Family Support,Supplies & Services
21/10/2016,3844327,540,Hoople Ltd,201707,Schools,Employees
26/10/2016,3844882,"2,097.70",Hoople Ltd,201707,Schools,Supplies & Services
26/10/2016,3844261,"3,467.25",Enviro Technology Services PLC,201707,Environment and Place,Supplies & Services
19/10/2016,3843405,740,REDACTED,201707,Schools,Premises-Related Expenditure
12/10/2016,3842845,"1,377.00",REDACTED,201707,Environment and Place,Transport-Related Expenditure
12/10/2016,3842846,"1,458.00",REDACTED,201707,Environment and Place,Transport-Related Expenditure
20/10/2016,2161102,"115,806.29",Worcestershire Health & Care NHS Trust,201707,Public Health,Third Party Payments
21/10/2016,3844470,"1,030.00",Worcestershire Health & Care NHS Trust,201707,Public Health,Third Party Payments
12/10/2016,3843205,"3,271.40",REDACTED,201707,Schools,Supplies & Services
14/10/2016,3843615,"2,389.20",REDACTED,201707,Schools,Supplies & Services
21/10/2016,3844725,"1,660.20",REDACTED,201707,Schools,Supplies & Services
02/11/2016,3844393,"11,669.31",REDACTED,201707,Schools,Supplies & Services
21/10/2016,2161490,458.33,Lugwardine Primary Academy,201707,Central Childrens Directorate Costs,Support Services
21/10/2016,2161500,458.33,St Pauls Church of England Primary School,201707,Central Childrens Directorate Costs,Support Services
21/10/2016,2161501,458.33,St Pauls Church of England Primary School,201707,Central Childrens Directorate Costs,Support Services
21/10/2016,2161755,458.33,St Pauls Church of England Primary School,201707,Central Childrens Directorate Costs,Support Services
21/10/2016,2161795,458.33,St Pauls Church of England Primary School,201707,Central Childrens Directorate Costs,Support Services
26/10/2016,3845320,976.5,MS & EM Patrick Ltd,201707,Environment and Place,Supplies & Services
21/10/2016,3844259,"13,020.75",Onside Independent Advocacy,201707,Commissioning Adults,Third Party Payments
28/10/2016,3845843,"2,751.75",MVF Builders Ltd,201707,Housing & Independent Living Capital,Capital Expenditure
12/10/2016,3842645,"2,430.00",REDACTED,201707,Environment and Place,Transport-Related Expenditure
12/10/2016,3842896,"2,280.00",REDACTED,201707,Environment and Place,Transport-Related Expenditure
05/10/2016,3842581,"2,269.33",Heritage Manor Ltd,201707,Physical Disabilities,Third Party Payments
08/11/2016,2163450,"1,045.16",Natwest One Card (Direct Debit A/C),201707,Resources,Supplies & Services
21/10/2016,3844045,700.2,Neopost Limited,201707,Communities,Supplies & Services
26/10/2016,3844901,635.16,Neopost Limited,201707,Communities,Supplies & Services
26/10/2016,3844903,"8,775.81",Neopost Limited,201707,Communities,Supplies & Services
21/10/2016,3844844,500,Neopost Limited,201707,Resources,Supplies & Services
21/10/2016,3844845,"1,000.00",Neopost Limited,201707,Resources,Supplies & Services
21/10/2016,3844846,"1,000.00",Neopost Limited,201707,Resources,Supplies & Services
07/10/2016,3841525,"9,810.00",Network Fencing & Landscaping,201707,Schools Devolved Capital,Capital Expenditure
19/10/2016,3843630,"3,747.00",Network Fencing & Landscaping,201707,Schools Devolved Capital,Capital Expenditure
21/10/2016,3844658,456,Newsquest Media Group Ltd,201707,Commissioning Capital,Capital Expenditure
21/10/2016,3844681,788,Newsquest Media Group Ltd,201707,Communities,Supplies & Services
05/10/2016,3842242,478.5,Newsquest Media Group Ltd,201707,Schools,Supplies & Services
07/10/2016,3842598,465,Newsquest Media Group Ltd,201707,Schools,Supplies & Services
19/10/2016,3843645,480,Newsquest Media Group Ltd,201707,Schools,Supplies & Services
28/10/2016,3845868,430,Newsquest Media Group Ltd,201707,Schools,Supplies & Services
19/10/2016,3843400,"2,381.00",Northamptonshire County Council,201707,Schools,Supplies & Services
26/10/2016,3845101,"1,120.00",Northern Link Traffic Data Consultancy Ltd,201707,Commissioning Capital,Capital Expenditure
21/10/2016,3843757,"1,479.25",Northgate Public Services (UK) Ltd,201707,Communities,Supplies & Services
12/10/2016,3842733,"63,388.80",Nottingham Rehab Ltd,201707,Commissioning Adults,Supplies & Services
12/10/2016,3842733,"14,230.86",Nottingham Rehab Ltd,201707,Commissioning Adults,Transport-Related Expenditure
28/10/2016,3845666,"11,466.47",Nottingham Rehab Ltd,201707,Transformation and safeguarding,Supplies & Services
26/10/2016,3845187,"1,243.71",Npower,201707,Environment and Place,Premises-Related Expenditure
21/10/2016,3844268,"1,171.16",Npower,201707,Schools,Premises-Related Expenditure
14/10/2016,3843535,"2,040.00",Oaker Wood Leisure Ltd,201707,Schools,Supplies & Services
26/10/2016,3844789,"3,630.00",Oaker Wood Leisure Ltd,201707,Schools,Supplies & Services
21/10/2016,3844349,"4,250.00",Octaga Security Services Ltd,201707,Environment and Place,Supplies & Services
14/10/2016,3843344,"8,336.13",Orange plc (Airtime),201707,Resources,Supplies & Services
14/10/2016,2160662,"1,455.95",Orleton C.E. Primary School Imprest,201707,Schools,Supplies & Services
26/10/2016,3844940,"3,159.50",Orleton School Meals,201707,Schools,Supplies & Services
21/10/2016,3844106,568.02,Orphans Press Ltd,201707,Communities,Supplies & Services
21/10/2016,3844683,945,Orphans Press Ltd,201707,Communities,Supplies & Services
19/10/2016,3843139,"4,386.79",Owen Pell Ltd,201707,Growth Capital,Capital Expenditure
26/10/2016,3844832,597.3,Owen Pell Ltd,201707,Growth Capital,Capital Expenditure
26/10/2016,3844984,800.83,Owen Pell Ltd,201707,Growth Capital,Capital Expenditure
05/10/2016,3842150,701.2,Oxford University Press,201707,Schools,Supplies & Services
19/10/2016,3843541,"1,199.33",Oxford University Press,201707,Schools,Supplies & Services
21/10/2016,3844271,513.55,Oxford University Press,201707,Schools,Supplies & Services
12/10/2016,3842850,"1,485.00",P W Jones (Hereford) Ltd,201707,Environment and Place,Transport-Related Expenditure
12/10/2016,3842851,"3,051.00",P W Jones (Hereford) Ltd,201707,Environment and Place,Transport-Related Expenditure
12/10/2016,3842852,"3,351.00",P W Jones (Hereford) Ltd,201707,Environment and Place,Transport-Related Expenditure
12/10/2016,3842853,"4,200.00",P W Jones (Hereford) Ltd,201707,Environment and Place,Transport-Related Expenditure
19/10/2016,3844232,"1,095.00",P W Jones (Hereford) Ltd,201707,Schools,Supplies & Services
21/10/2016,3844654,"9,357.39",Ezitracker,201707,Transformation and safeguarding,Supplies & Services
12/10/2016,2157259,475.21,West Mercia Energy,201707,Environment and Place,Premises-Related Expenditure
12/10/2016,2157260,555.98,West Mercia Energy,201707,Environment and Place,Premises-Related Expenditure
12/10/2016,2157270,579.3,West Mercia Energy,201707,Environment and Place,Premises-Related Expenditure
12/10/2016,2157290,515.48,West Mercia Energy,201707,Environment and Place,Premises-Related Expenditure
12/10/2016,2157301,425.04,West Mercia Energy,201707,Environment and Place,Premises-Related Expenditure
12/10/2016,2157302,958.8,West Mercia Energy,201707,Environment and Place,Premises-Related Expenditure
12/10/2016,2157312,442.71,West Mercia Energy,201707,Environment and Place,Premises-Related Expenditure
12/10/2016,2157324,425.87,West Mercia Energy,201707,Environment and Place,Premises-Related Expenditure
12/10/2016,2157330,547.09,West Mercia Energy,201707,Environment and Place,Premises-Related Expenditure
26/10/2016,2162017,435.08,West Mercia Energy,201707,Environment and Place,Premises-Related Expenditure
26/10/2016,2162019,566.75,West Mercia Energy,201707,Environment and Place,Premises-Related Expenditure
26/10/2016,2162028,471.28,West Mercia Energy,201707,Environment and Place,Premises-Related Expenditure
26/10/2016,2162036,681.8,West Mercia Energy,201707,Environment and Place,Premises-Related Expenditure
26/10/2016,2162097,646.38,West Mercia Energy,201707,Environment and Place,Premises-Related Expenditure
26/10/2016,2162020,476.71,West Mercia Energy,201707,Schools,Premises-Related Expenditure
26/10/2016,2162023,429.69,West Mercia Energy,201707,Schools,Premises-Related Expenditure
26/10/2016,2162043,460.7,West Mercia Energy,201707,Schools,Premises-Related Expenditure
26/10/2016,2162053,531.4,West Mercia Energy,201707,Schools,Premises-Related Expenditure
26/10/2016,2162079,454.9,West Mercia Energy,201707,Schools,Premises-Related Expenditure
26/10/2016,2162088,679.94,West Mercia Energy,201707,Schools,Premises-Related Expenditure
26/10/2016,2162089,419.76,West Mercia Energy,201707,Schools,Premises-Related Expenditure
26/10/2016,2162091,426.3,West Mercia Energy,201707,Schools,Premises-Related Expenditure
28/10/2016,3845829,"2,082.80",West Mercia Energy,201707,Schools,Premises-Related Expenditure
02/11/2016,3846067,"1,965.24",West Mercia Energy,201707,Schools,Premises-Related Expenditure
02/11/2016,3846110,"1,734.00",West Mercia Energy,201707,Schools,Premises-Related Expenditure
26/10/2016,2162104,435.19,West Mercia Energy,201707,Environment and Place,Premises-Related Expenditure
26/10/2016,2162106,713.61,West Mercia Energy,201707,Schools,Premises-Related Expenditure
26/10/2016,2162116,775.3,West Mercia Energy,201707,Environment and Place,Premises-Related Expenditure
26/10/2016,2162117,"11,954.17",West Mercia Energy,201707,Environment and Place,Premises-Related Expenditure
26/10/2016,2162118,"1,092.62",West Mercia Energy,201707,Schools,Premises-Related Expenditure
26/10/2016,2162119,"1,166.86",West Mercia Energy,201707,Schools,Premises-Related Expenditure
26/10/2016,2162120,"1,231.10",West Mercia Energy,201707,Environment and Place,Premises-Related Expenditure
26/10/2016,2162121,926.65,West Mercia Energy,201707,Environment and Place,Premises-Related Expenditure
26/10/2016,2162122,"1,044.47",West Mercia Energy,201707,Environment and Place,Premises-Related Expenditure
19/10/2016,3843544,948.75,Pearson Education Ltd,201707,Schools,Supplies & Services
12/10/2016,3842936,"2,073.69",Pembridge Parish Council,201707,Environment and Place,Third Party Payments
21/10/2016,3844491,"3,183.00",Peterchurch Parish Council,201707,Environment and Place,Third Party Payments
07/10/2016,3842802,"21,518.72",Peters Bookselling Services,201707,Communities,Supplies & Services
12/10/2016,3842873,595,PGL Travel Ltd,201707,Schools,Supplies & Services
21/10/2016,3844459,"3,800.00",PGL Travel Ltd,201707,Schools,Supplies & Services
14/10/2016,3843208,660,REDACTED,201707,Schools,Supplies & Services
21/10/2016,3843879,"1,700.00",REDACTED,201707,Schools,Supplies & Services
21/10/2016,3844124,771.95,PHS Group Plc,201707,Environment and Place,Third Party Payments
05/10/2016,3842284,"1,263.46",PHS Group Plc,201707,Schools,Supplies & Services
21/10/2016,3844145,915.56,PHS Group Plc,201707,Schools,Supplies & Services
12/10/2016,3842630,499.2,REDACTED,201707,Environment and Place,Transport-Related Expenditure
21/10/2016,3843937,515.78,PIP Printing Hereford,201707,Public Health,Supplies & Services
21/10/2016,2161722,458.33,Stretton Sugwas CE Academy,201707,Central Childrens Directorate Costs,Support Services
21/10/2016,2161724,458.33,Stretton Sugwas CE Academy,201707,Central Childrens Directorate Costs,Support Services
21/10/2016,2161731,458.33,Stretton Sugwas CE Academy,201707,Central Childrens Directorate Costs,Support Services
28/10/2016,3845689,700,Stretton Sugwas CE Academy,201707,Schools,Supplies & Services
05/10/2016,3841384,"10,164.00",Pontrilas Developments Ltd,201707,Resources,Premises-Related Expenditure
12/10/2016,3842967,419,Primary Site Ltd,201707,Schools,Supplies & Services
05/10/2016,3842378,"2,796.00",Provide Home Solutions Ltd,201707,Schools,Premises-Related Expenditure
21/10/2016,3844475,"2,282.00",Education Property Partnership Ltd,201707,Schools,Supplies & Services
21/10/2016,3844337,650,PW Media & Publishing,201707,Communities,Supplies & Services
21/10/2016,3844682,980,PW Media & Publishing,201707,Communities,Supplies & Services
19/10/2016,3843533,500,PW Media & Publishing,201707,Schools,Supplies & Services
21/10/2016,3843855,510,Quickskip Hereford Limited,201707,Schools,Supplies & Services
12/10/2016,3842840,"1,701.00",REDACTED,201707,Environment and Place,Transport-Related Expenditure
12/10/2016,3842848,"1,314.00",REDACTED,201707,Environment and Place,Transport-Related Expenditure
12/10/2016,3842849,"1,458.00",REDACTED,201707,Environment and Place,Transport-Related Expenditure
05/10/2016,3842225,"1,435.00",Investec Asset Finance,201707,Schools,Supplies & Services
14/10/2016,3843048,"1,519.96",Red Spark Learning CIC,201707,Education and Commissioning,Supplies & Services
05/10/2016,3842110,943.69,Relion Heating Services Ltd,201707,Schools,Premises-Related Expenditure
05/10/2016,3842289,"1,881.32",Relion Heating Services Ltd,201707,Schools,Premises-Related Expenditure
07/10/2016,3842689,"1,384.75",Relion Heating Services Ltd,201707,Schools,Premises-Related Expenditure
05/10/2016,3842243,"4,071.60",Renaissance Learning Uk Ltd,201707,Schools,Supplies & Services
26/10/2016,3845347,"56,991.00",River Lugg Drainage Board,201707,Resources,Third Party Payments
05/10/2016,3842469,"6,500.00",Peterchurch Parochial Church Council,201707,Growth,Transfer Payments
21/10/2016,3843631,"2,277.76",Royal Mail Group Ltd,201707,Communities,Supplies & Services
21/10/2016,3844042,"5,565.85",Royal Mail Group Ltd,201707,Communities,Supplies & Services
12/10/2016,3842864,"2,421.00",REDACTED,201707,Environment and Place,Transport-Related Expenditure
12/10/2016,3842875,"1,431.00",REDACTED,201707,Environment and Place,Transport-Related Expenditure
12/10/2016,3842642,540,S & R Taxis,201707,Physical Disabilities,Transport-Related Expenditure
07/10/2016,3842333,"2,060.00",S C Joseph Ltd,201707,Schools,Premises-Related Expenditure
21/10/2016,3843987,480,S C Joseph Ltd,201707,Schools,Premises-Related Expenditure
26/10/2016,3844977,"4,536.00",S C Joseph Ltd,201707,Schools,Premises-Related Expenditure
21/10/2016,3844739,924.12,S C Joseph Ltd,201707,Schools,Supplies & Services
07/10/2016,3842333,"26,982.93",S C Joseph Ltd,201707,Schools Devolved Capital,Capital Expenditure
26/10/2016,3844978,"6,618.00",S C Joseph Ltd,201707,Schools Devolved Capital,Capital Expenditure
21/10/2016,3844125,"1,752.76",S M Stanley Builders Ltd,201707,Schools,Premises-Related Expenditure
19/10/2016,3843502,"7,488.74",S M Stanley Builders Ltd,201707,Schools Devolved Capital,Capital Expenditure
19/10/2016,3843628,"16,066.03",S M Stanley Builders Ltd,201707,Schools Devolved Capital,Capital Expenditure
19/10/2016,3843629,"8,910.85",S M Stanley Builders Ltd,201707,Schools Devolved Capital,Capital Expenditure
21/10/2016,3843877,"1,418.00",REDACTED,201707,Schools,Employees
14/10/2016,3843066,510,REDACTED,201707,Schools,Supplies & Services
05/10/2016,3841867,"37,007.00",Sargeants Brothers Ltd,201707,Environment and Place,Third Party Payments
21/10/2016,3843834,"7,366.20",Sargeants Brothers Ltd,201707,Environment and Place,Third Party Payments
28/10/2016,3845368,700,Sargeants Brothers Ltd,201707,Environment and Place,Third Party Payments
12/10/2016,3842855,"2,470.00",Sargeants Brothers Ltd,201707,Environment and Place,Transport-Related Expenditure
12/10/2016,3842856,"18,000.00",Sargeants Brothers Ltd,201707,Environment and Place,Transport-Related Expenditure
12/10/2016,3842857,"3,142.20",Sargeants Brothers Ltd,201707,Environment and Place,Transport-Related Expenditure
14/10/2016,3843251,"6,900.00",Sargeants Brothers Ltd,201707,Environment and Place,Transport-Related Expenditure
21/10/2016,3843706,600,Sargeants Brothers Ltd,201707,Schools,Transport-Related Expenditure
12/10/2016,3843116,500,The Visual Works,201707,Schools,Supplies & Services
21/10/2016,3844044,"22,094.88",Sciprint Limited,201707,Communities,Supplies & Services
14/10/2016,3843196,475,Sea Legs Puppet Theatre Co.,201707,Communities,Supplies & Services
19/10/2016,3843652,635.5,Serco Ltd,201707,Schools,Employees
21/10/2016,3844003,"32,543.00",Services For Independent Living,201707,Commissioning Adults,Third Party Payments
12/10/2016,3842927,933,Severn Valley Window & Door Ltd,201707,Resources,Premises-Related Expenditure
05/10/2016,3842144,"1,170.00",REDACTED,201707,Schools,Supplies & Services
02/11/2016,3844632,951.98,Shaw Healthcare (Herefordshire) Ltd,201707,Physical Disabilities,Employees
07/10/2016,3842412,"254,675.54",Shaw Healthcare (Herefordshire) Ltd,201707,Physical Disabilities,Third Party Payments
12/10/2016,3842687,"57,407.35",Shaw Healthcare (Herefordshire) Ltd,201707,Physical Disabilities,Third Party Payments
12/10/2016,3842688,"4,785.85",Shaw Healthcare (Herefordshire) Ltd,201707,Physical Disabilities,Third Party Payments
02/11/2016,3844622,"6,919.64",Shaw Healthcare (Herefordshire) Ltd,201707,Physical Disabilities,Third Party Payments
05/10/2016,3841984,"8,189.29",Shaw Healthcare Ltd,201707,Physical Disabilities,Employees
19/10/2016,3843563,"8,189.29",Shaw Healthcare Ltd,201707,Physical Disabilities,Employees
05/10/2016,3842249,"1,710.00",Realising Learning Ltd,201707,Schools,Supplies & Services
26/10/2016,3845122,"11,700.00",Shropshire Council,201707,Public Health,Supplies & Services
05/10/2016,3841734,"1,194.60",Shropshire Council,201707,Schools,Supplies & Services
26/10/2016,3844763,"2,081.20",Shropshire Council,201707,Schools,Supplies & Services
26/10/2016,3844908,"2,479.40",Shropshire Council,201707,Schools,Supplies & Services
05/10/2016,3842288,485.87,Siemens Financial Services Ltd,201707,Schools,Supplies & Services
21/10/2016,3843772,489.34,Siemens Financial Services Ltd,201707,Schools,Supplies & Services
26/10/2016,3845568,862.53,Siemens Financial Services Ltd,201707,Schools,Supplies & Services
02/11/2016,3845221,425,Signalong,201707,Schools,Supplies & Services
05/10/2016,3842286,790.5,Silverfx Ltd,201707,Schools,Supplies & Services
28/10/2016,3845624,"16,999.01",Kier Construction - Central Div of Kier Construction Ltd,201707,Children & Young People Capital,Capital Expenditure
07/10/2016,3842560,"115,093.26",Kier Construction - Central Div of Kier Construction Ltd,201707,Resources Capital,Capital Expenditure
12/10/2016,3843012,645.02,Sovereign Design Play Systems Ltd,201707,Schools,Premises-Related Expenditure
12/10/2016,3842949,485.51,Sovereign Design Play Systems Ltd,201707,Schools,Supplies & Services
21/10/2016,3844578,609.56,Spa Gas Ltd,201707,Schools,Premises-Related Expenditure
21/10/2016,3844596,"1,303.49",Spa Gas Ltd,201707,Schools,Premises-Related Expenditure
02/11/2016,3846131,546.78,Spa Gas Ltd,201707,Schools,Premises-Related Expenditure
05/10/2016,3841967,596,Superstars/Sports Stars Ltd,201707,Schools,Supplies & Services
19/10/2016,3843343,"1,108.00",Superstars/Sports Stars Ltd,201707,Schools,Supplies & Services
21/10/2016,3844619,"1,108.00",Superstars/Sports Stars Ltd,201707,Schools,Supplies & Services
26/10/2016,3845479,"1,112.00",Superstars/Sports Stars Ltd,201707,Schools,Supplies & Services
28/10/2016,3845645,596,Superstars/Sports Stars Ltd,201707,Schools,Supplies & Services
12/10/2016,2157784,734.19,St Peters C P School Imprest,201707,Schools,Premises-Related Expenditure
12/10/2016,2157784,"1,421.85",St Peters C P School Imprest,201707,Schools,Supplies & Services
12/10/2016,3842649,"62,024.00",Stagecoach Services Limited,201707,Environment and Place,Third Party Payments
26/10/2016,3845291,"12,539.04",Stagecoach Services Limited,201707,Environment and Place,Third Party Payments
02/11/2016,3841848,"9,202.60",Park Place Technologies Computer Computer Ltd,201707,Resources,Supplies & Services
02/11/2016,3842785,777.98,Park Place Technologies Computer Computer Ltd,201707,Resources,Supplies & Services
26/10/2016,3845436,455.7,Stoke Prior Primary Imprest,201707,Schools,Supplies & Services
21/10/2016,3844532,745.8,REDACTED,201707,Schools,Supplies & Services
21/10/2016,3844533,959.2,REDACTED,201707,Schools,Supplies & Services
19/10/2016,3843141,600,Sunshine FM Ltd,201707,Communities,Supplies & Services
28/10/2016,2164254,500,Support Services - Legal,201707,Adults Operations,Supplies & Services
07/10/2016,2156443,"10,830.00",Support Services - Legal,201707,Communities,Supplies & Services
28/10/2016,2164254,"11,277.00",Support Services - Legal,201707,Communities,Supplies & Services
26/10/2016,3844777,"24,166.67",Stonham,201707,Commissioning Adults,Supplies & Services
26/10/2016,3844992,543.51,T S Matthews & Son (Bartonsham Farm Dairies),201707,Schools,Supplies & Services
21/10/2016,3844688,936,Tennis Hereford,201707,Schools,Supplies & Services
05/10/2016,3842239,"1,400.00",The Carnival Arts Group,201707,Environment and Place,Supplies & Services
19/10/2016,3843142,852.35,The Carnival Arts Group,201707,Environment and Place,Supplies & Services
26/10/2016,3845372,"1,580.00",The Carnival Arts Group,201707,Environment and Place,Supplies & Services
05/10/2016,3842107,"1,996.50",The Courtyard Trust,201707,Schools,Supplies & Services
14/10/2016,3843119,978.5,The Courtyard Trust,201707,Schools,Supplies & Services
26/10/2016,3844890,463.5,The Courtyard Trust,201707,Schools,Supplies & Services
26/10/2016,3844900,543,The Courtyard Trust,201707,Schools,Supplies & Services
26/10/2016,3845128,457.5,The Courtyard Trust,201707,Schools,Supplies & Services
28/10/2016,3845721,975.5,The Courtyard Trust,201707,Schools,Supplies & Services
21/10/2016,3844444,"2,424.00",The Courtyard Trust,201707,Schools,Supplies & Services
19/10/2016,3844233,989.49,The Danwood Group Limited,201707,Schools,Supplies & Services
21/10/2016,3844702,636.52,The Danwood Group Limited,201707,Schools,Supplies & Services
21/10/2016,2161513,458.33,BAE Trust T/A The Hereford Academy,201707,Central Childrens Directorate Costs,Support Services
21/10/2016,2161609,458.33,BAE Trust T/A The Hereford Academy,201707,Central Childrens Directorate Costs,Support Services
21/10/2016,2161631,458.33,BAE Trust T/A The Hereford Academy,201707,Central Childrens Directorate Costs,Support Services
21/10/2016,2161799,719.17,BAE Trust T/A The Hereford Academy,201707,Central Childrens Directorate Costs,Support Services
21/10/2016,2161810,458.33,BAE Trust T/A The Hereford Academy,201707,Central Childrens Directorate Costs,Support Services
05/10/2016,3841927,"1,610.00",The Houghton Project,201707,Education and Commissioning,Third Party Payments
05/10/2016,3842178,"1,200.00",The Music Pool,201707,Communities,Supplies & Services
14/10/2016,3843197,"1,800.00",The Music Pool,201707,Communities,Supplies & Services
14/10/2016,3843603,"1,120.00",The NST Travel Group Plc,201707,Schools,Supplies & Services
21/10/2016,3843708,520,The NST Travel Group Plc,201707,Schools,Supplies & Services
20/10/2016,2161100,"2,901.58",The Plynlimon Trust Community Car Scheme,201707,Environment and Place,Supplies & Services
26/10/2016,3845161,"2,571.12",The Plynlimon Trust Community Car Scheme,201707,Environment and Place,Transport-Related Expenditure
26/10/2016,3845162,"1,196.10",The Plynlimon Trust Community Car Scheme,201707,Environment and Place,Transport-Related Expenditure
26/10/2016,3845377,744.3,The Plynlimon Trust Community Car Scheme,201707,Environment and Place,Transport-Related Expenditure
12/10/2016,3842808,730,The Red Ridge Centre,201707,Schools,Supplies & Services
21/10/2016,3843923,680,The Red Ridge Centre,201707,Schools,Supplies & Services
21/10/2016,3844529,"2,934.00",The Red Ridge Centre,201707,Schools,Supplies & Services
21/10/2016,3844531,"4,190.00",The Red Ridge Centre,201707,Schools,Supplies & Services
28/10/2016,3845500,525,The Red Ridge Centre,201707,Schools,Supplies & Services
21/10/2016,2161517,458.33,The Steiner Academy Hereford,201707,Central Childrens Directorate Costs,Support Services
21/10/2016,2161656,458.33,The Steiner Academy Hereford,201707,Central Childrens Directorate Costs,Support Services
21/10/2016,2161800,458.33,The Steiner Academy Hereford,201707,Central Childrens Directorate Costs,Support Services
12/10/2016,3842828,564.86,Alcontrol UK Ltd (Direct Debit),201707,Environment and Place,Supplies & Services
02/11/2016,3846126,"3,938.50",Total Hygiene Ltd,201707,Housing & Independent Living Capital,Capital Expenditure
26/10/2016,3845293,846.08,Tradebe  Gwent Ltd,201707,Environment and Place,Supplies & Services
05/10/2016,3842406,"3,047.36",Trinity Primary School (Imprest/Petty Cash),201707,Schools,Premises-Related Expenditure
05/10/2016,3842406,"2,772.71",Trinity Primary School (Imprest/Petty Cash),201707,Schools,Supplies & Services
21/10/2016,3844841,"1,625.00",Trustees Of Great Western Railway,201707,Resources,Premises-Related Expenditure
26/10/2016,3844962,"1,625.00",Trustees Of Great Western Railway,201707,Resources,Premises-Related Expenditure
28/10/2016,3845597,"1,625.00",Trustees Of Great Western Railway,201707,Resources,Premises-Related Expenditure
02/11/2016,3845850,"2,684.50",Trustmarque Solutions Ltd,201707,Resources,Supplies & Services
05/10/2016,3841479,712.31,TTS Group Ltd,201707,Schools,Supplies & Services
05/10/2016,3841480,791.55,TTS Group Ltd,201707,Schools,Supplies & Services
26/10/2016,3845313,569.95,TTS Group Ltd,201707,Schools,Supplies & Services
28/10/2016,3845580,641.33,TTS Group Ltd,201707,Schools,Supplies & Services
05/10/2016,3842136,"2,861.10",Turner & Co (Rent A/C),201707,Resources,Premises-Related Expenditure
12/10/2016,3842138,"17,424.03",Turner & Co (Rent A/C),201707,Resources,Premises-Related Expenditure
14/10/2016,3842137,"1,889.49",Turner & Co (Rent A/C),201707,Resources,Premises-Related Expenditure
07/10/2016,3842747,"2,000.00",University Of Gloucestershire,201707,Environment and Place,Supplies & Services
02/11/2016,3838379,690,Updata Infrastructure UK Ltd,201707,Resources,Supplies & Services
28/10/2016,3845131,"1,140.00",REDACTED,201707,Environment and Place,Transport-Related Expenditure
28/10/2016,3845151,"1,140.00",REDACTED,201707,Environment and Place,Transport-Related Expenditure
28/10/2016,3844809,490,Marlbrook Collaboration,201707,Education and Commissioning,Support Services
12/10/2016,3842854,"1,350.00",Venture Taxi Services Ltd,201707,Environment and Place,Transport-Related Expenditure
14/10/2016,3843452,830.73,Veolia ES Onyx Ltd,201707,Schools,Third Party Payments
24/10/2016,3845061,"14,008.61",Salix Finance Ltd,201707,Environment and Place,Premises-Related Expenditure
14/10/2016,2160064,"2,445.59",Walford Primary School Imprest Account,201707,Schools,Supplies & Services
26/10/2016,3844928,884,Watson Petroleum Limited,201707,Schools,Premises-Related Expenditure
05/10/2016,3842125,884.4,Welsh Water,201707,Environment and Place,Premises-Related Expenditure
07/10/2016,3842618,"1,331.00",Welsh Water,201707,Environment and Place,Premises-Related Expenditure
12/10/2016,3843333,"4,259.31",Welsh Water,201707,Environment and Place,Premises-Related Expenditure
21/10/2016,3843301,"4,185.79",Welsh Water,201707,Environment and Place,Premises-Related Expenditure
21/10/2016,3843872,"2,128.01",Welsh Water,201707,Environment and Place,Premises-Related Expenditure
26/10/2016,3843651,"1,689.18",Welsh Water,201707,Environment and Place,Premises-Related Expenditure
26/10/2016,3845204,537.83,Welsh Water,201707,Environment and Place,Premises-Related Expenditure
26/10/2016,3845205,912.09,Welsh Water,201707,Environment and Place,Premises-Related Expenditure
28/10/2016,3845852,670.49,Welsh Water,201707,Environment and Place,Premises-Related Expenditure
12/10/2016,3842014,638.22,Welsh Water,201707,Schools,Premises-Related Expenditure
14/10/2016,3843604,961,Welsh Water,201707,Schools,Premises-Related Expenditure
14/10/2016,3843605,"2,684.00",Welsh Water,201707,Schools,Premises-Related Expenditure
14/10/2016,3843606,926.28,Welsh Water,201707,Schools,Premises-Related Expenditure
14/10/2016,3843608,730.32,Welsh Water,201707,Schools,Premises-Related Expenditure
14/10/2016,3843612,"1,457.07",Welsh Water,201707,Schools,Premises-Related Expenditure
19/10/2016,3843318,629.42,Welsh Water,201707,Schools,Premises-Related Expenditure
19/10/2016,3843634,931.77,Welsh Water,201707,Schools,Premises-Related Expenditure
19/10/2016,3843964,784.04,Welsh Water,201707,Schools,Premises-Related Expenditure
19/10/2016,3844339,"1,095.21",Welsh Water,201707,Schools,Premises-Related Expenditure
21/10/2016,3843878,"1,142.31",Welsh Water,201707,Schools,Premises-Related Expenditure
21/10/2016,3843963,851.77,Welsh Water,201707,Schools,Premises-Related Expenditure
21/10/2016,3844391,"2,577.24",Welsh Water,201707,Schools,Premises-Related Expenditure
21/10/2016,3844525,689,Welsh Water,201707,Schools,Premises-Related Expenditure
26/10/2016,3844812,"1,314.67",Welsh Water,201707,Schools,Premises-Related Expenditure
26/10/2016,3844824,433.96,Welsh Water,201707,Schools,Premises-Related Expenditure
26/10/2016,3844937,672.76,Welsh Water,201707,Schools,Premises-Related Expenditure
26/10/2016,3845119,"1,198.58",Welsh Water,201707,Schools,Premises-Related Expenditure
26/10/2016,3845145,560.71,Welsh Water,201707,Schools,Premises-Related Expenditure
26/10/2016,3845149,"1,364.27",Welsh Water,201707,Schools,Premises-Related Expenditure
28/10/2016,3845476,447.63,Welsh Water,201707,Schools,Premises-Related Expenditure
14/10/2016,3843589,"1,586.75",Welsh Water (DWR CYMRU CYF CIS ONLY),201707,Growth Capital,Capital Expenditure
05/10/2016,2156086,547.9,Weobley High School Petty Cash,201707,Schools,Employees
05/10/2016,2156086,837.21,Weobley High School Petty Cash,201707,Schools,Premises-Related Expenditure
05/10/2016,2156086,"4,072.15",Weobley High School Petty Cash,201707,Schools,Supplies & Services
14/10/2016,3843025,"29,706.58",West Mercia  Womens Aid,201707,Commissioning Adults,Supplies & Services
28/10/2016,3845799,"29,706.66",West Mercia  Womens Aid,201707,Commissioning Adults,Supplies & Services
14/10/2016,3843026,"17,533.34",West Mercia Homes Ltd,201707,Commissioning Adults,Supplies & Services
14/10/2016,3843483,"1,284,956.00",West Mercia Police & Crime Commissioner,201707,Collection Fund,Collection Fund Accounts
05/10/2016,3841609,581.94,West Mercia Supplies (The Consortium),201707,Schools,Premises-Related Expenditure
21/10/2016,3843785,"2,176.00",West Mercia Supplies (The Consortium),201707,Schools,Premises-Related Expenditure
26/10/2016,3845446,535.57,West Mercia Supplies (The Consortium),201707,Schools,Premises-Related Expenditure
05/10/2016,3840685,664.24,West Mercia Supplies (The Consortium),201707,Schools,Supplies & Services
05/10/2016,3841733,979.63,West Mercia Supplies (The Consortium),201707,Schools,Supplies & Services
19/10/2016,3843475,499.99,West Mercia Supplies (The Consortium),201707,Schools,Supplies & Services
19/10/2016,3843477,421.49,West Mercia Supplies (The Consortium),201707,Schools,Supplies & Services
19/10/2016,3843478,612.64,West Mercia Supplies (The Consortium),201707,Schools,Supplies & Services
21/10/2016,3843928,940.36,West Mercia Supplies (The Consortium),201707,Schools,Supplies & Services
21/10/2016,3837343,424.63,West Mercia Supplies (The Consortium),201707,Schools,Supplies & Services
28/10/2016,3845496,"1,994.95",West Mercia Supplies (The Consortium),201707,Schools,Supplies & Services
02/11/2016,3846022,537.83,West Mercia Supplies (The Consortium),201707,Schools,Supplies & Services
02/11/2016,3846026,721.5,West Mercia Supplies (The Consortium),201707,Schools,Supplies & Services
02/11/2016,3846061,993.74,West Mercia Supplies (The Consortium),201707,Schools,Supplies & Services
07/10/2016,3842549,"1,350.00",West Midlands Employers,201707,Resources,Supplies & Services
19/10/2016,3843402,890,Westcom Business Communications Ltd,201707,Schools,Premises-Related Expenditure
12/10/2016,3841483,"18,307.73",Westwood Developments,201707,Environment and Place,Premises-Related Expenditure
21/10/2016,3844008,"238,529.96",Whitecross@Stepnell Ltd,201707,Education and Commissioning,Premises-Related Expenditure
05/10/2016,3842010,750,Wigmore Group Parish Council,201707,Growth,Transfer Payments
21/10/2016,2161803,719.17,Wigmore High School (Academy),201707,Central Childrens Directorate Costs,Support Services
21/10/2016,2161854,916.66,Wigmore High School (Academy),201707,Central Childrens Directorate Costs,Support Services
14/10/2016,3843587,"10,315.24",Wigmore High School (Academy),201707,Children & Young People Capital,Capital Expenditure
26/10/2016,3845383,"1,278.80",Wigmore High School (Academy),201707,Schools,Supplies & Services
28/10/2016,3845610,"1,018.90",Wigmore High School (Academy),201707,Schools,Supplies & Services
21/10/2016,3844450,820,Withington Group Parish Council,201707,Environment and Place,Third Party Payments
02/11/2016,3845199,"1,500.00",Life Cycle UK,201707,Environment and Place,Supplies & Services
07/10/2016,3842650,"2,690.00",Worcestershire County Council ,201707,Corporate,Employees
14/10/2016,3843479,"40,750.00",Worcestershire County Council ,201707,Corporate,Employees
26/10/2016,3845269,"2,857.25",Worcestershire County Council,201707,Environment and Place,Supplies & Services
28/10/2016,3845716,"896,725.35",Worcestershire County Council,201707,Environment and Place,Third Party Payments
21/10/2016,3844552,"1,995.00",Edge Hill University,201707,Schools,Employees
19/10/2016,3844209,"23,171.60",R Griffiths & Son Ltd,201707,Housing & Independent Living Capital,Capital Expenditure
21/10/2016,3843946,497.46,XMA Ltd,201707,Growth,Supplies & Services
05/10/2016,3842411,"106,996.50",XMA Ltd,201707,Resources,Supplies & Services
26/10/2016,3845217,"1,372.70",XMA Ltd,201707,Resources,Supplies & Services
07/10/2016,3841260,"5,584.35",Yeomans Travel Ltd,201707,Environment and Place,Third Party Payments
21/10/2016,3843830,"5,540.95",Yeomans Travel Ltd,201707,Environment and Place,Third Party Payments
21/10/2016,3843849,"6,429.20",Yeomans Travel Ltd,201707,Environment and Place,Third Party Payments
21/10/2016,3843850,"39,337.24",Yeomans Travel Ltd,201707,Environment and Place,Third Party Payments
28/10/2016,3843829,642.45,Yeomans Travel Ltd,201707,Environment and Place,Third Party Payments
12/10/2016,3842648,"3,852.00",Yeomans Travel Ltd,201707,Environment and Place,Transport-Related Expenditure
12/10/2016,3842823,"31,980.46",Yeomans Travel Ltd,201707,Environment and Place,Transport-Related Expenditure
12/10/2016,3842843,"2,160.00",Yeomans Travel Ltd,201707,Environment and Place,Transport-Related Expenditure
19/10/2016,3843497,938,Yeomans Travel Ltd,201707,Schools,Supplies & Services
21/10/2016,3844465,"2,646.00",Yeomans Travel Ltd,201707,Schools,Supplies & Services
19/10/2016,3843625,"1,134.00",Yeomans Travel Ltd,201707,Schools,Transport-Related Expenditure
21/10/2016,3844469,440,Yeomans Travel Ltd,201707,Schools,Transport-Related Expenditure
21/10/2016,2161599,458.33,Whitecross Hereford Academy,201707,Central Childrens Directorate Costs,Support Services
21/10/2016,2161701,458.33,Whitecross Hereford Academy,201707,Central Childrens Directorate Costs,Support Services
12/10/2016,3843001,606,Border Group Parish Council,201707,Environment and Place,Third Party Payments
19/10/2016,3843041,"2,500.00",The British Museum Great Court Ltd,201707,Communities,Supplies & Services
20/10/2016,2161094,"1,756.39",Bromyard Community Transport Ltd,201707,Environment and Place,Supplies & Services
26/10/2016,3845152,"1,611.00",Bromyard Community Transport Ltd,201707,Environment and Place,Transport-Related Expenditure
26/10/2016,3845153,866.25,Bromyard Community Transport Ltd,201707,Environment and Place,Transport-Related Expenditure
05/10/2016,3842158,547.5,Yorkshire Purchasing,201707,Schools,Premises-Related Expenditure
05/10/2016,3842093,"4,500.00",SMS Energy Services,201707,Growth Capital,Capital Expenditure
05/10/2016,3842553,550,SMS Energy Services,201707,Growth Capital,Capital Expenditure
20/10/2016,2161095,"1,877.09",CVS Ledbury & District (Ledbury Ring & Ride)Standing Order,201707,Environment and Place,Supplies & Services
05/10/2016,3841954,640,You Time Counselling Trust,201707,Schools,Supplies & Services
26/10/2016,3845139,720,You Time Counselling Trust,201707,Schools,Supplies & Services
21/10/2016,3844197,470.5,Forward Products,201707,Schools,Supplies & Services
26/10/2016,3845082,572.25,Forward Products,201707,Schools,Supplies & Services
26/10/2016,3845342,655.66,REDACTED,201707,Communities,Supplies & Services
05/10/2016,3841736,846.1,Children's Scrapstore,201707,Schools,Supplies & Services
28/10/2016,3840803,"28,585.00",Kenson Network Engineering Ltd,201707,Resources,Supplies & Services
19/10/2016,3843144,925.08,Ancer Spa Ltd,201707,Growth,Third Party Payments
05/10/2016,3842385,668.78,Schools Advisory Service,201707,Schools,Employees
26/10/2016,3844938,569,REDACTED,201707,Schools,Supplies & Services
28/10/2016,3845635,510,REDACTED,201707,Schools,Supplies & Services
05/10/2016,3841890,"7,566.00",Callcredit,201707,Resources,Supplies & Services
05/10/2016,3842139,548,Callcredit,201707,Resources,Supplies & Services
21/10/2016,2161753,458.33,Canon Pyon CE Academy,201707,Central Childrens Directorate Costs,Support Services
21/10/2016,3844414,"2,600.00",Siteimprove Ltd,201707,Resources,Supplies & Services
21/10/2016,2161520,"1,033.33",Barrs Court Academy,201707,Central Childrens Directorate Costs,Support Services
21/10/2016,2161521,"1,033.33",Barrs Court Academy,201707,Central Childrens Directorate Costs,Support Services
21/10/2016,2161522,"1,033.33",Barrs Court Academy,201707,Central Childrens Directorate Costs,Support Services
21/10/2016,2161523,"1,033.33",Barrs Court Academy,201707,Central Childrens Directorate Costs,Support Services
21/10/2016,2161524,458.33,Barrs Court Academy,201707,Central Childrens Directorate Costs,Support Services
21/10/2016,2161525,719.17,Barrs Court Academy,201707,Central Childrens Directorate Costs,Support Services
21/10/2016,2161526,719.17,Barrs Court Academy,201707,Central Childrens Directorate Costs,Support Services
21/10/2016,2161527,458.33,Barrs Court Academy,201707,Central Childrens Directorate Costs,Support Services
21/10/2016,2161528,719.17,Barrs Court Academy,201707,Central Childrens Directorate Costs,Support Services
21/10/2016,2161529,"1,033.33",Barrs Court Academy,201707,Central Childrens Directorate Costs,Support Services
21/10/2016,2161530,"1,033.33",Barrs Court Academy,201707,Central Childrens Directorate Costs,Support Services
21/10/2016,2161531,719.17,Barrs Court Academy,201707,Central Childrens Directorate Costs,Support Services
21/10/2016,2161532,"1,033.33",Barrs Court Academy,201707,Central Childrens Directorate Costs,Support Services
21/10/2016,2161533,458.33,Barrs Court Academy,201707,Central Childrens Directorate Costs,Support Services
21/10/2016,2161534,"1,399.17",Barrs Court Academy,201707,Central Childrens Directorate Costs,Support Services
21/10/2016,2161535,719.17,Barrs Court Academy,201707,Central Childrens Directorate Costs,Support Services
21/10/2016,2161536,719.17,Barrs Court Academy,201707,Central Childrens Directorate Costs,Support Services
21/10/2016,2161537,"1,033.33",Barrs Court Academy,201707,Central Childrens Directorate Costs,Support Services
21/10/2016,2161538,719.17,Barrs Court Academy,201707,Central Childrens Directorate Costs,Support Services
21/10/2016,2161539,719.17,Barrs Court Academy,201707,Central Childrens Directorate Costs,Support Services
21/10/2016,2161540,458.33,Barrs Court Academy,201707,Central Childrens Directorate Costs,Support Services
21/10/2016,2161541,"1,033.33",Barrs Court Academy,201707,Central Childrens Directorate Costs,Support Services
21/10/2016,2161542,"1,033.33",Barrs Court Academy,201707,Central Childrens Directorate Costs,Support Services
21/10/2016,2161543,719.17,Barrs Court Academy,201707,Central Childrens Directorate Costs,Support Services
21/10/2016,2161544,719.17,Barrs Court Academy,201707,Central Childrens Directorate Costs,Support Services
21/10/2016,2161545,"1,033.33",Barrs Court Academy,201707,Central Childrens Directorate Costs,Support Services
21/10/2016,2161546,"1,033.33",Barrs Court Academy,201707,Central Childrens Directorate Costs,Support Services
21/10/2016,2161547,719.17,Barrs Court Academy,201707,Central Childrens Directorate Costs,Support Services
21/10/2016,2161548,"1,399.17",Barrs Court Academy,201707,Central Childrens Directorate Costs,Support Services
21/10/2016,2161549,"1,033.33",Barrs Court Academy,201707,Central Childrens Directorate Costs,Support Services
21/10/2016,2161550,"1,033.33",Barrs Court Academy,201707,Central Childrens Directorate Costs,Support Services
21/10/2016,2161551,458.33,Barrs Court Academy,201707,Central Childrens Directorate Costs,Support Services
21/10/2016,2161552,719.17,Barrs Court Academy,201707,Central Childrens Directorate Costs,Support Services
21/10/2016,2161553,458.33,Barrs Court Academy,201707,Central Childrens Directorate Costs,Support Services
21/10/2016,2161554,458.33,Barrs Court Academy,201707,Central Childrens Directorate Costs,Support Services
21/10/2016,2161555,458.33,Barrs Court Academy,201707,Central Childrens Directorate Costs,Support Services
21/10/2016,2161556,719.17,Barrs Court Academy,201707,Central Childrens Directorate Costs,Support Services
21/10/2016,2161557,719.17,Barrs Court Academy,201707,Central Childrens Directorate Costs,Support Services
21/10/2016,2161558,"1,033.33",Barrs Court Academy,201707,Central Childrens Directorate Costs,Support Services
21/10/2016,2161559,719.17,Barrs Court Academy,201707,Central Childrens Directorate Costs,Support Services
21/10/2016,2161561,719.17,Barrs Court Academy,201707,Central Childrens Directorate Costs,Support Services
21/10/2016,2161562,719.17,Barrs Court Academy,201707,Central Childrens Directorate Costs,Support Services
21/10/2016,2161563,"1,033.33",Barrs Court Academy,201707,Central Childrens Directorate Costs,Support Services
21/10/2016,2161564,"1,033.33",Barrs Court Academy,201707,Central Childrens Directorate Costs,Support Services
21/10/2016,2161565,"1,033.33",Barrs Court Academy,201707,Central Childrens Directorate Costs,Support Services
21/10/2016,2161566,"1,033.33",Barrs Court Academy,201707,Central Childrens Directorate Costs,Support Services
21/10/2016,2161567,"1,399.17",Barrs Court Academy,201707,Central Childrens Directorate Costs,Support Services
21/10/2016,2161568,"1,033.33",Barrs Court Academy,201707,Central Childrens Directorate Costs,Support Services
21/10/2016,2161569,"1,033.33",Barrs Court Academy,201707,Central Childrens Directorate Costs,Support Services
21/10/2016,2161570,"1,399.17",Barrs Court Academy,201707,Central Childrens Directorate Costs,Support Services
21/10/2016,2161571,719.17,Barrs Court Academy,201707,Central Childrens Directorate Costs,Support Services
21/10/2016,2161572,719.17,Barrs Court Academy,201707,Central Childrens Directorate Costs,Support Services
21/10/2016,2161573,719.17,Barrs Court Academy,201707,Central Childrens Directorate Costs,Support Services
21/10/2016,2161574,719.17,Barrs Court Academy,201707,Central Childrens Directorate Costs,Support Services
21/10/2016,2161613,458.33,Barrs Court Academy,201707,Central Childrens Directorate Costs,Support Services
21/10/2016,2161614,"1,033.33",Barrs Court Academy,201707,Central Childrens Directorate Costs,Support Services
21/10/2016,2161615,"1,399.17",Barrs Court Academy,201707,Central Childrens Directorate Costs,Support Services
21/10/2016,2161616,"1,033.33",Barrs Court Academy,201707,Central Childrens Directorate Costs,Support Services
21/10/2016,2161617,"1,033.33",Barrs Court Academy,201707,Central Childrens Directorate Costs,Support Services
21/10/2016,2161618,719.17,Barrs Court Academy,201707,Central Childrens Directorate Costs,Support Services
21/10/2016,2161619,719.17,Barrs Court Academy,201707,Central Childrens Directorate Costs,Support Services
21/10/2016,2161620,"1,033.33",Barrs Court Academy,201707,Central Childrens Directorate Costs,Support Services
21/10/2016,2161621,458.33,Barrs Court Academy,201707,Central Childrens Directorate Costs,Support Services
21/10/2016,2161622,458.33,Barrs Court Academy,201707,Central Childrens Directorate Costs,Support Services
21/10/2016,2161623,458.33,Barrs Court Academy,201707,Central Childrens Directorate Costs,Support Services
21/10/2016,2161624,458.33,Barrs Court Academy,201707,Central Childrens Directorate Costs,Support Services
21/10/2016,2161625,"1,033.33",Barrs Court Academy,201707,Central Childrens Directorate Costs,Support Services
21/10/2016,2161626,"1,399.17",Barrs Court Academy,201707,Central Childrens Directorate Costs,Support Services
21/10/2016,2161627,"1,033.33",Barrs Court Academy,201707,Central Childrens Directorate Costs,Support Services
21/10/2016,2161637,719.17,Barrs Court Academy,201707,Central Childrens Directorate Costs,Support Services
21/10/2016,2161638,458.33,Barrs Court Academy,201707,Central Childrens Directorate Costs,Support Services
21/10/2016,2161639,719.17,Barrs Court Academy,201707,Central Childrens Directorate Costs,Support Services
21/10/2016,2161640,719.17,Barrs Court Academy,201707,Central Childrens Directorate Costs,Support Services
21/10/2016,2161646,458.33,Barrs Court Academy,201707,Central Childrens Directorate Costs,Support Services
21/10/2016,2161657,"1,033.33",Barrs Court Academy,201707,Central Childrens Directorate Costs,Support Services
21/10/2016,2161672,458.33,Barrs Court Academy,201707,Central Childrens Directorate Costs,Support Services
21/10/2016,2161673,458.33,Barrs Court Academy,201707,Central Childrens Directorate Costs,Support Services
21/10/2016,2161674,458.33,Barrs Court Academy,201707,Central Childrens Directorate Costs,Support Services
21/10/2016,2161675,"1,033.33",Barrs Court Academy,201707,Central Childrens Directorate Costs,Support Services
21/10/2016,2161680,458.33,Barrs Court Academy,201707,Central Childrens Directorate Costs,Support Services
21/10/2016,2161682,"1,033.33",Barrs Court Academy,201707,Central Childrens Directorate Costs,Support Services
21/10/2016,2161683,458.33,Barrs Court Academy,201707,Central Childrens Directorate Costs,Support Services
21/10/2016,2161684,"1,033.33",Barrs Court Academy,201707,Central Childrens Directorate Costs,Support Services
21/10/2016,2161685,458.33,Barrs Court Academy,201707,Central Childrens Directorate Costs,Support Services
21/10/2016,2161691,458.33,Barrs Court Academy,201707,Central Childrens Directorate Costs,Support Services
21/10/2016,2161692,458.33,Barrs Court Academy,201707,Central Childrens Directorate Costs,Support Services
21/10/2016,2161693,719.17,Barrs Court Academy,201707,Central Childrens Directorate Costs,Support Services
21/10/2016,2161694,458.33,Barrs Court Academy,201707,Central Childrens Directorate Costs,Support Services
21/10/2016,2161695,458.33,Barrs Court Academy,201707,Central Childrens Directorate Costs,Support Services
21/10/2016,2161754,458.33,Barrs Court Academy,201707,Central Childrens Directorate Costs,Support Services
21/10/2016,2161769,458.33,Barrs Court Academy,201707,Central Childrens Directorate Costs,Support Services
21/10/2016,2161770,"1,033.33",Barrs Court Academy,201707,Central Childrens Directorate Costs,Support Services
21/10/2016,2161771,719.17,Barrs Court Academy,201707,Central Childrens Directorate Costs,Support Services
21/10/2016,2161804,458.33,Barrs Court Academy,201707,Central Childrens Directorate Costs,Support Services
21/10/2016,2161814,458.33,Barrs Court Academy,201707,Central Childrens Directorate Costs,Support Services
21/10/2016,2161815,"1,399.17",Barrs Court Academy,201707,Central Childrens Directorate Costs,Support Services
21/10/2016,2161816,458.33,Barrs Court Academy,201707,Central Childrens Directorate Costs,Support Services
21/10/2016,2161838,719.17,Barrs Court Academy,201707,Central Childrens Directorate Costs,Support Services
21/10/2016,2161853,"2,066.66",Barrs Court Academy,201707,Central Childrens Directorate Costs,Support Services
21/10/2016,2161859,"1,438.34",Barrs Court Academy,201707,Central Childrens Directorate Costs,Support Services
21/10/2016,2161860,"1,438.34",Barrs Court Academy,201707,Central Childrens Directorate Costs,Support Services
21/10/2016,2161861,"2,066.66",Barrs Court Academy,201707,Central Childrens Directorate Costs,Support Services
21/10/2016,2161862,"1,438.34",Barrs Court Academy,201707,Central Childrens Directorate Costs,Support Services
21/10/2016,2161863,"2,066.66",Barrs Court Academy,201707,Central Childrens Directorate Costs,Support Services
21/10/2016,2161864,"2,066.66",Barrs Court Academy,201707,Central Childrens Directorate Costs,Support Services
21/10/2016,2161865,"2,066.66",Barrs Court Academy,201707,Central Childrens Directorate Costs,Support Services
21/10/2016,2161866,"1,438.34",Barrs Court Academy,201707,Central Childrens Directorate Costs,Support Services
21/10/2016,2161871,"2,575.09",Barrs Court Academy,201707,Central Childrens Directorate Costs,Support Services
05/10/2016,3842433,604,ParentPay Limited,201707,Schools,Supplies & Services
14/10/2016,3843239,485,One Creative Environments Ltd,201707,Growth Capital,Capital Expenditure
21/10/2016,3844111,433.07,Allstar Business Solutions (Direct Debit only),201707,Environment and Place,Transport-Related Expenditure
04/11/2016,3846125,"4,225.00",Anglia Stairlifts Ltd,201707,Housing & Independent Living Capital,Capital Expenditure
28/10/2016,3845851,"3,400.00",GreySky Consulting Ltd,201707,Growth Capital,Capital Expenditure
21/10/2016,2161710,"1,078.01",Derwen College,201707,Central Childrens Directorate Costs,Support Services
21/10/2016,2161711,"1,104.35",Derwen College,201707,Central Childrens Directorate Costs,Support Services
21/10/2016,2161712,"1,136.31",Derwen College,201707,Central Childrens Directorate Costs,Support Services
21/10/2016,2161713,"1,104.35",Derwen College,201707,Central Childrens Directorate Costs,Support Services
21/10/2016,2161714,"1,136.31",Derwen College,201707,Central Childrens Directorate Costs,Support Services
21/10/2016,2161715,"1,136.31",Derwen College,201707,Central Childrens Directorate Costs,Support Services
21/10/2016,2161716,"1,136.31",Derwen College,201707,Central Childrens Directorate Costs,Support Services
21/10/2016,2161717,629.49,Derwen College,201707,Central Childrens Directorate Costs,Support Services
21/10/2016,2161718,629.49,Derwen College,201707,Central Childrens Directorate Costs,Support Services
21/10/2016,2161719,629.49,Derwen College,201707,Central Childrens Directorate Costs,Support Services
21/10/2016,2161720,629.49,Derwen College,201707,Central Childrens Directorate Costs,Support Services
21/10/2016,2161721,629.49,Derwen College,201707,Central Childrens Directorate Costs,Support Services
21/10/2016,2161834,576.75,Derwen College,201707,Central Childrens Directorate Costs,Support Services
21/10/2016,2161835,"1,015.83",Derwen College,201707,Central Childrens Directorate Costs,Support Services
21/10/2016,2161876,"9,185.04",National Star College,201707,Central Childrens Directorate Costs,Support Services
21/10/2016,2161877,"3,350.79",National Star College,201707,Central Childrens Directorate Costs,Support Services
21/10/2016,2161878,"12,041.28",National Star College,201707,Central Childrens Directorate Costs,Support Services
21/10/2016,2161879,"4,536.96",National Star College,201707,Central Childrens Directorate Costs,Support Services
21/10/2016,2161880,"5,694.30",National Star College,201707,Central Childrens Directorate Costs,Support Services
21/10/2016,2161882,"2,064.00",National Star College,201707,Central Childrens Directorate Costs,Support Services
21/10/2016,2161883,"1,568.37",National Star College,201707,Central Childrens Directorate Costs,Support Services
21/10/2016,2161884,"4,600.26",National Star College,201707,Central Childrens Directorate Costs,Support Services
21/10/2016,2161885,"4,643.64",National Star College,201707,Central Childrens Directorate Costs,Support Services
21/10/2016,2161886,"4,697.49",National Star College,201707,Central Childrens Directorate Costs,Support Services
21/10/2016,2161887,"2,657.46",National Star College,201707,Central Childrens Directorate Costs,Support Services
21/10/2016,2161888,"3,205.74",National Star College,201707,Central Childrens Directorate Costs,Support Services
21/10/2016,2161889,"2,897.13",National Star College,201707,Central Childrens Directorate Costs,Support Services
21/10/2016,2161890,"2,961.48",National Star College,201707,Central Childrens Directorate Costs,Support Services
21/10/2016,2161891,421.5,National Star College,201707,Central Childrens Directorate Costs,Support Services
21/10/2016,2161892,421.5,National Star College,201707,Central Childrens Directorate Costs,Support Services
21/10/2016,2161893,494.46,National Star College,201707,Central Childrens Directorate Costs,Support Services
21/10/2016,2161894,800.01,National Star College,201707,Central Childrens Directorate Costs,Support Services
24/10/2016,3845056,"1,087.00",REDACTED,201707,Environment and Place,Supplies & Services
28/10/2016,3845768,"2,335.10",Cinderford Artspace Ltd,201707,Environment and Place,Supplies & Services
12/10/2016,3843058,"3,024,096.72",Balfour Beatty Living Places Ltd,201707,Holding Codes,Holding Codes
28/10/2016,3845470,"2,945.56",Dell Financial Services,201707,Schools,Supplies & Services
19/10/2016,3843294,"1,265.00",Malvern Hills Outdoor Education Co Ltd,201707,Schools,Supplies & Services
02/11/2016,3845680,"1,560.00",NEPRO Limited,201707,Adults Operations,Supplies & Services
19/10/2016,3843507,"4,420.00",NEPRO Limited,201707,Directors,Third Party Payments
05/10/2016,3841850,"6,489.00",NEPRO Limited,201707,Growth,Employees
19/10/2016,3843427,"4,974.90",NEPRO Limited,201707,Growth,Employees
05/10/2016,3837051,"8,240.00",NEPRO Limited,201707,Growth,Third Party Payments
19/10/2016,3843508,"10,300.00",NEPRO Limited,201707,Growth,Third Party Payments
19/10/2016,3843806,"6,695.00",NEPRO Limited,201707,Growth,Third Party Payments
21/10/2016,3844156,"4,160.00",NEPRO Limited,201707,Transformation and safeguarding,Supplies & Services
14/10/2016,3843249,"3,330.00",HCT Construction Consultants Ltd,201707,Growth,Supplies & Services
19/10/2016,3843539,500,Cragrats (UK) Ltd,201707,Schools,Supplies & Services
19/10/2016,3843084,750,Mr John's Productions,201707,Schools,Supplies & Services
19/10/2016,3844262,584.1,Prestige Events,201707,Resources,Supplies & Services
19/10/2016,3843547,538.33,Clubsport (Retail) Ltd,201707,Schools,Supplies & Services
14/10/2016,3843120,"1,347.40",Digital ID Ltd,201707,Resources,Supplies & Services
14/10/2016,3842953,"6,910.83",Enigma CCTV Ltd,201707,Environment and Place,Supplies & Services
21/10/2016,3843709,458.34,The Falstaff Experience Ltd,201707,Schools,Supplies & Services
26/10/2016,3843302,558.21,Total Gas & Power Ltd,201707,Environment and Place,Premises-Related Expenditure
21/10/2016,2161499,458.33,Mordiford Church of England Primary School,201707,Central Childrens Directorate Costs,Support Services
21/10/2016,2161723,458.33,Mordiford Church of England Primary School,201707,Central Childrens Directorate Costs,Support Services
21/10/2016,2161663,458.33,St Thomas Cantilupe CE Academy,201707,Central Childrens Directorate Costs,Support Services
21/10/2016,2161741,458.33,St Thomas Cantilupe CE Academy,201707,Central Childrens Directorate Costs,Support Services
21/10/2016,2161787,458.33,St Thomas Cantilupe CE Academy,201707,Central Childrens Directorate Costs,Support Services
21/10/2016,2161797,458.33,St Thomas Cantilupe CE Academy,201707,Central Childrens Directorate Costs,Support Services
07/10/2016,3842704,"2,400.00",HMCTS,201707,Environment and Place,Supplies & Services
05/10/2016,3842174,"1,159.50",Able 2 Occupational Therapy Services Limited,201707,Communities,Supplies & Services
14/10/2016,3843223,"1,435.20",Woods of Whitchurch,201707,Schools,Supplies & Services
14/10/2016,3843243,"2,717.00",M & J Travel,201707,Environment and Place,Transport-Related Expenditure
21/10/2016,3843244,"3,135.00",M & J Travel,201707,Environment and Place,Transport-Related Expenditure
28/10/2016,3845155,"7,581.00",Roy Browns Coaches,201707,Environment and Place,Transport-Related Expenditure
05/10/2016,3842493,897,Grenke Leasing Ltd,201707,Schools,Supplies & Services
19/10/2016,3843559,"1,142.58",Grenke Leasing Ltd,201707,Schools,Supplies & Services
21/10/2016,3844367,897,Grenke Leasing Ltd,201707,Schools,Supplies & Services
19/10/2016,3844231,475,REDACTED,201707,Schools,Supplies & Services
28/10/2016,3845671,650.1,REDACTED,201707,Schools,Supplies & Services
02/11/2016,3846135,540,REDACTED,201707,Schools,Supplies & Services
21/10/2016,2161441,448,Ewyas Harold Primary School-,201707,Children & Young People Capital,Capital Income
07/10/2016,3842573,"2,666.80",REDACTED,201707,Housing & Independent Living Capital,Capital Expenditure
02/11/2016,3844170,500,REDACTED,201707,Growth,Supplies & Services
14/10/2016,3842985,"2,066.91",Gloucestershire Care Services NHST,201707,Public Health,Third Party Payments
14/10/2016,3843103,"2,182.33",Gloucestershire Care Services NHST,201707,Public Health,Third Party Payments
21/10/2016,2161775,458.33,Fairfield High School (Academy),201707,Central Childrens Directorate Costs,Support Services
21/10/2016,2161868,916.66,Fairfield High School (Academy),201707,Central Childrens Directorate Costs,Support Services
21/10/2016,3844340,"5,088.00",Fairfield High School (Academy),201707,Education and Commissioning,Supplies & Services
12/10/2016,3842920,"1,400.50",Fairfield High School (Academy),201707,Education and Commissioning,Support Services
19/10/2016,3843340,"2,100.00",Fairfield High School (Academy),201707,Schools,Supplies & Services
28/10/2016,3845870,"10,100.00",Fairfield High School (Academy),201707,Schools,Supplies & Services
12/10/2016,3843310,"3,395.82",Fulcrum Pipelines Ltd,201707,Growth Capital,Capital Expenditure
28/10/2016,3845497,800,Practice Supplies Ltd,201707,Schools,Supplies & Services
26/10/2016,3844756,"3,448.00",Barton Hyett Associates Ltd,201707,Environment and Place,Third Party Payments
12/10/2016,3842882,576,Simon's Taxis,201707,Environment and Place,Transport-Related Expenditure
12/10/2016,3842883,"1,400.00",Simon's Taxis,201707,Environment and Place,Transport-Related Expenditure
12/10/2016,3842884,"1,710.00",Simon's Taxis,201707,Environment and Place,Transport-Related Expenditure
12/10/2016,3842885,886,Simon's Taxis,201707,Learning Disabilities,Transport-Related Expenditure
28/10/2016,3845460,450,Clinton Lewis Heating Ltd,201707,Schools Devolved Capital,Capital Expenditure
26/10/2016,3845535,"2,388.65",Haptic Networks Ltd,201707,Schools,Supplies & Services
21/10/2016,3843791,"3,200.00",Creative Edge Design Ltd,201707,Communities,Supplies & Services
21/10/2016,3843792,"1,630.00",Creative Edge Design Ltd,201707,Communities,Supplies & Services
21/10/2016,2161704,458.33,Robert Owen Academey,201707,Central Childrens Directorate Costs,Support Services
21/10/2016,2161821,458.33,Robert Owen Academey,201707,Central Childrens Directorate Costs,Support Services
12/10/2016,3842814,475,Turner & Company,201707,Resources,Premises-Related Expenditure
19/10/2016,3844397,704.8,HM Revenue & Customs,201707,Communities,Employees
05/10/2016,3842570,"3,590.57",Level Access Bathrooms,201707,Housing & Independent Living Capital,Capital Expenditure
19/10/2016,3844294,"3,761.27",Level Access Bathrooms,201707,Housing & Independent Living Capital,Capital Expenditure
14/10/2016,3843024,"16,659.00",Ategi Ltd,201707,Commissioning Adults,Third Party Payments
26/10/2016,3844859,880,Franklin Plumbing & Heating,201707,Schools,Premises-Related Expenditure
02/11/2016,3845458,"4,000.00",Due North Limited,201707,Environment and Place,Supplies & Services
26/10/2016,3845182,"55,675.81",Interserve FS (UK) Ltd,201707,Holding Codes,Holding Codes
14/10/2016,3843102,433.78,Walsall MBC,201707,Adults Operations,Third Party Payments
07/10/2016,3842734,"3,727.24",REDACTED,201707,Growth,Supplies & Services
14/10/2016,3843241,"1,230.61",REDACTED,201707,Growth,Supplies & Services
12/10/2016,3842928,"2,160.00",Vince Mantle Flooring Ltd,201707,Resources,Premises-Related Expenditure
05/10/2016,3841735,696,Vince Mantle Flooring Ltd,201707,Schools,Premises-Related Expenditure
19/10/2016,3842632,"27,789.66",Portakabin Ltd,201707,Education and Commissioning,Premises-Related Expenditure
19/10/2016,3843506,"16,750.00",Heineken UK Ltd (Scottish & Newcastle UK),201707,Resources,Premises-Related Expenditure
21/10/2016,3843979,"2,095.00",H & G Healthcare Ltd,201707,Public Health,Third Party Payments
26/10/2016,3845123,"1,500.00",REDACTED,201707,Environment and Place,Supplies & Services
26/10/2016,3845334,680,Eastnor V C School Fund,201707,Schools,Supplies & Services
21/10/2016,2161575,719.17,The Brookfield School (Academy),201707,Central Childrens Directorate Costs,Support Services
21/10/2016,2161576,719.17,The Brookfield School (Academy),201707,Central Childrens Directorate Costs,Support Services
21/10/2016,2161577,458.33,The Brookfield School (Academy),201707,Central Childrens Directorate Costs,Support Services
21/10/2016,2161578,719.17,The Brookfield School (Academy),201707,Central Childrens Directorate Costs,Support Services
21/10/2016,2161579,458.33,The Brookfield School (Academy),201707,Central Childrens Directorate Costs,Support Services
21/10/2016,2161580,458.33,The Brookfield School (Academy),201707,Central Childrens Directorate Costs,Support Services
21/10/2016,2161581,458.33,The Brookfield School (Academy),201707,Central Childrens Directorate Costs,Support Services
21/10/2016,2161582,719.17,The Brookfield School (Academy),201707,Central Childrens Directorate Costs,Support Services
21/10/2016,2161583,719.17,The Brookfield School (Academy),201707,Central Childrens Directorate Costs,Support Services
21/10/2016,2161584,719.17,The Brookfield School (Academy),201707,Central Childrens Directorate Costs,Support Services
21/10/2016,2161585,719.17,The Brookfield School (Academy),201707,Central Childrens Directorate Costs,Support Services
21/10/2016,2161586,719.17,The Brookfield School (Academy),201707,Central Childrens Directorate Costs,Support Services
21/10/2016,2161587,719.17,The Brookfield School (Academy),201707,Central Childrens Directorate Costs,Support Services
21/10/2016,2161588,719.17,The Brookfield School (Academy),201707,Central Childrens Directorate Costs,Support Services
21/10/2016,2161589,458.33,The Brookfield School (Academy),201707,Central Childrens Directorate Costs,Support Services
21/10/2016,2161590,458.33,The Brookfield School (Academy),201707,Central Childrens Directorate Costs,Support Services
21/10/2016,2161591,719.17,The Brookfield School (Academy),201707,Central Childrens Directorate Costs,Support Services
21/10/2016,2161592,719.17,The Brookfield School (Academy),201707,Central Childrens Directorate Costs,Support Services
21/10/2016,2161593,458.33,The Brookfield School (Academy),201707,Central Childrens Directorate Costs,Support Services
21/10/2016,2161594,719.17,The Brookfield School (Academy),201707,Central Childrens Directorate Costs,Support Services
21/10/2016,2161596,719.17,The Brookfield School (Academy),201707,Central Childrens Directorate Costs,Support Services
21/10/2016,2161597,719.17,The Brookfield School (Academy),201707,Central Childrens Directorate Costs,Support Services
21/10/2016,2161610,719.17,The Brookfield School (Academy),201707,Central Childrens Directorate Costs,Support Services
21/10/2016,2161611,719.17,The Brookfield School (Academy),201707,Central Childrens Directorate Costs,Support Services
21/10/2016,2161612,719.17,The Brookfield School (Academy),201707,Central Childrens Directorate Costs,Support Services
21/10/2016,2161628,"2,141.67",The Brookfield School (Academy),201707,Central Childrens Directorate Costs,Support Services
21/10/2016,2161632,458.33,The Brookfield School (Academy),201707,Central Childrens Directorate Costs,Support Services
21/10/2016,2161633,458.33,The Brookfield School (Academy),201707,Central Childrens Directorate Costs,Support Services
21/10/2016,2161635,458.33,The Brookfield School (Academy),201707,Central Childrens Directorate Costs,Support Services
21/10/2016,2161648,719.17,The Brookfield School (Academy),201707,Central Childrens Directorate Costs,Support Services
21/10/2016,2161649,719.17,The Brookfield School (Academy),201707,Central Childrens Directorate Costs,Support Services
21/10/2016,2161650,458.33,The Brookfield School (Academy),201707,Central Childrens Directorate Costs,Support Services
21/10/2016,2161651,458.33,The Brookfield School (Academy),201707,Central Childrens Directorate Costs,Support Services
21/10/2016,2161652,719.17,The Brookfield School (Academy),201707,Central Childrens Directorate Costs,Support Services
21/10/2016,2161653,458.33,The Brookfield School (Academy),201707,Central Childrens Directorate Costs,Support Services
21/10/2016,2161654,719.17,The Brookfield School (Academy),201707,Central Childrens Directorate Costs,Support Services
21/10/2016,2161662,719.17,The Brookfield School (Academy),201707,Central Childrens Directorate Costs,Support Services
21/10/2016,2161677,458.33,The Brookfield School (Academy),201707,Central Childrens Directorate Costs,Support Services
21/10/2016,2161686,458.33,The Brookfield School (Academy),201707,Central Childrens Directorate Costs,Support Services
21/10/2016,2161687,458.33,The Brookfield School (Academy),201707,Central Childrens Directorate Costs,Support Services
21/10/2016,2161702,458.33,The Brookfield School (Academy),201707,Central Childrens Directorate Costs,Support Services
21/10/2016,2161703,458.33,The Brookfield School (Academy),201707,Central Childrens Directorate Costs,Support Services
21/10/2016,2161706,458.33,The Brookfield School (Academy),201707,Central Childrens Directorate Costs,Support Services
21/10/2016,2161726,458.33,The Brookfield School (Academy),201707,Central Childrens Directorate Costs,Support Services
21/10/2016,2161727,458.33,The Brookfield School (Academy),201707,Central Childrens Directorate Costs,Support Services
21/10/2016,2161735,458.33,The Brookfield School (Academy),201707,Central Childrens Directorate Costs,Support Services
21/10/2016,2161736,458.33,The Brookfield School (Academy),201707,Central Childrens Directorate Costs,Support Services
21/10/2016,2161738,458.33,The Brookfield School (Academy),201707,Central Childrens Directorate Costs,Support Services
21/10/2016,2161743,"1,033.33",The Brookfield School (Academy),201707,Central Childrens Directorate Costs,Support Services
21/10/2016,2161744,719.17,The Brookfield School (Academy),201707,Central Childrens Directorate Costs,Support Services
21/10/2016,2161745,719.17,The Brookfield School (Academy),201707,Central Childrens Directorate Costs,Support Services
21/10/2016,2161746,719.17,The Brookfield School (Academy),201707,Central Childrens Directorate Costs,Support Services
21/10/2016,2161747,719.17,The Brookfield School (Academy),201707,Central Childrens Directorate Costs,Support Services
21/10/2016,2161748,719.17,The Brookfield School (Academy),201707,Central Childrens Directorate Costs,Support Services
21/10/2016,2161749,719.17,The Brookfield School (Academy),201707,Central Childrens Directorate Costs,Support Services
21/10/2016,2161750,719.17,The Brookfield School (Academy),201707,Central Childrens Directorate Costs,Support Services
21/10/2016,2161751,719.17,The Brookfield School (Academy),201707,Central Childrens Directorate Costs,Support Services
21/10/2016,2161752,719.17,The Brookfield School (Academy),201707,Central Childrens Directorate Costs,Support Services
21/10/2016,2161756,458.33,The Brookfield School (Academy),201707,Central Childrens Directorate Costs,Support Services
21/10/2016,2161760,458.33,The Brookfield School (Academy),201707,Central Childrens Directorate Costs,Support Services
21/10/2016,2161761,"1,399.17",The Brookfield School (Academy),201707,Central Childrens Directorate Costs,Support Services
21/10/2016,2161763,458.33,The Brookfield School (Academy),201707,Central Childrens Directorate Costs,Support Services
21/10/2016,2161765,458.33,The Brookfield School (Academy),201707,Central Childrens Directorate Costs,Support Services
21/10/2016,2161766,458.33,The Brookfield School (Academy),201707,Central Childrens Directorate Costs,Support Services
21/10/2016,2161767,719.17,The Brookfield School (Academy),201707,Central Childrens Directorate Costs,Support Services
21/10/2016,2161768,458.33,The Brookfield School (Academy),201707,Central Childrens Directorate Costs,Support Services
21/10/2016,2161783,458.33,The Brookfield School (Academy),201707,Central Childrens Directorate Costs,Support Services
21/10/2016,2161801,719.17,The Brookfield School (Academy),201707,Central Childrens Directorate Costs,Support Services
21/10/2016,2161802,719.17,The Brookfield School (Academy),201707,Central Childrens Directorate Costs,Support Services
21/10/2016,2161805,458.33,The Brookfield School (Academy),201707,Central Childrens Directorate Costs,Support Services
21/10/2016,2161807,719.17,The Brookfield School (Academy),201707,Central Childrens Directorate Costs,Support Services
21/10/2016,2161808,458.33,The Brookfield School (Academy),201707,Central Childrens Directorate Costs,Support Services
21/10/2016,2161811,458.33,The Brookfield School (Academy),201707,Central Childrens Directorate Costs,Support Services
21/10/2016,2161813,719.17,The Brookfield School (Academy),201707,Central Childrens Directorate Costs,Support Services
21/10/2016,2161817,719.17,The Brookfield School (Academy),201707,Central Childrens Directorate Costs,Support Services
21/10/2016,2161826,458.33,The Brookfield School (Academy),201707,Central Childrens Directorate Costs,Support Services
21/10/2016,2161827,458.33,The Brookfield School (Academy),201707,Central Childrens Directorate Costs,Support Services
21/10/2016,2161828,458.33,The Brookfield School (Academy),201707,Central Childrens Directorate Costs,Support Services
21/10/2016,2161829,719.17,The Brookfield School (Academy),201707,Central Childrens Directorate Costs,Support Services
21/10/2016,2161830,719.17,The Brookfield School (Academy),201707,Central Childrens Directorate Costs,Support Services
21/10/2016,2161832,719.17,The Brookfield School (Academy),201707,Central Childrens Directorate Costs,Support Services
21/10/2016,2161850,626.39,The Brookfield School (Academy),201707,Central Childrens Directorate Costs,Support Services
21/10/2016,2161851,504.16,The Brookfield School (Academy),201707,Central Childrens Directorate Costs,Support Services
21/10/2016,2161855,916.66,The Brookfield School (Academy),201707,Central Childrens Directorate Costs,Support Services
21/10/2016,2161867,916.66,The Brookfield School (Academy),201707,Central Childrens Directorate Costs,Support Services
21/10/2016,2161873,748.61,The Brookfield School (Academy),201707,Central Childrens Directorate Costs,Support Services
21/10/2016,2161874,916.66,The Brookfield School (Academy),201707,Central Childrens Directorate Costs,Support Services
21/10/2016,3844714,"26,000.00",The Brookfield School (Academy),201707,Central Childrens Directorate Costs,Support Services
26/10/2016,3845129,"1,306.60",Food For Thought,201707,Schools,Supplies & Services
14/10/2016,3842824,540,Avonside Taxis,201707,Environment and Place,Transport-Related Expenditure
14/10/2016,3843254,"1,584.00",REDACTED,201707,Environment and Place,Transport-Related Expenditure
12/10/2016,3842930,"7,750.00",McKie Consulting Limited,201707,Commissioning Capital,Capital Expenditure
26/10/2016,3844931,583.3,Twinkl Ltd,201707,Schools,Supplies & Services
26/10/2016,3845547,"1,600.00",Twinkl Ltd,201707,Schools,Supplies & Services
19/10/2016,3843045,"5,448.00",Open Sky Productions Ltd,201707,Communities,Supplies & Services
21/10/2016,3844020,800, Landmark Chambers,201707,Communities,Supplies & Services
19/10/2016,3843083,660,Hewson Facilities,201707,Schools,Premises-Related Expenditure
14/10/2016,3843138,"2,727.41",Hydro Mechanical Services Ltd,201707,Growth Capital,Capital Expenditure
19/10/2016,3843140,"1,018.91",Clearway Doors & Windows Ltd,201707,Growth,Premises-Related Expenditure
19/10/2016,3843401,"3,248.76",Data Orchard C.I.C.,201707,Communities,Third Party Payments
26/10/2016,3844847,"2,306.40",Cobalt Telephone Technologies Ltd,201707,Environment and Place,Premises-Related Expenditure
12/10/2016,3842631,"3,628.63",Britannia Site Solutions Ltd,201707,Growth Capital,Capital Expenditure
21/10/2016,3843903,"1,622.15",Restore plc,201707,Communities,Supplies & Services
21/10/2016,3844072,450,Early Excellence Ltd,201707,Schools,Supplies & Services
21/10/2016,3844648,450,Early Excellence Ltd,201707,Schools,Supplies & Services
12/10/2016,3843210,776.98,D C Builders & Sons (Coventry) Limited,201707,Growth Capital,Capital Expenditure
28/10/2016,3845796,"3,300.00",REDACTED,201707,Communities,Supplies & Services
21/10/2016,2161446,794,Riverside Primary School - HCC,201707,Children & Young People Capital,Capital Income
26/10/2016,3845278,535,Riverside Primary School - HCC,201707,Education and Commissioning,Support Services
26/10/2016,3845279,535,Riverside Primary School - HCC,201707,Education and Commissioning,Support Services
26/10/2016,3845280,535,Riverside Primary School - HCC,201707,Education and Commissioning,Support Services
26/10/2016,3845281,535,Riverside Primary School - HCC,201707,Education and Commissioning,Support Services
26/10/2016,3845282,535,Riverside Primary School - HCC,201707,Education and Commissioning,Support Services
26/10/2016,3845431,535,Riverside Primary School - HCC,201707,Education and Commissioning,Support Services
21/10/2016,2161423,"1,137.00",Earl Mortimer College & Sixth Form HCC,201707,Children & Young People Capital,Capital Income
21/10/2016,3844278,"2,675.00",Earl Mortimer College & Sixth Form HCC,201707,Education and Commissioning,Support Services
12/10/2016,3842935,"1,818.18",Participation People,201707,Public Health,Supplies & Services
21/10/2016,3844457,608,Elevate Education,201707,Schools,Supplies & Services
21/10/2016,3844461,614,Elevate Education,201707,Schools,Supplies & Services
27/10/2016,2163454,862.42,Benefits Immediate Payments,201707,Corporate,Transfer Payments
07/10/2016,3842050,504,REDACTED,201707,Schools,Supplies & Services
05/10/2016,3842312,450,Wealden Leisure Ltd T/A Freedom Leisure,201707,Schools,Premises-Related Expenditure
05/10/2016,3842313,521.5,Wealden Leisure Ltd T/A Freedom Leisure,201707,Schools,Premises-Related Expenditure
14/10/2016,3842987,550,Ashdown Supplies,201707,Environment and Place,Supplies & Services
26/10/2016,3843926,756,REDACTED,201707,Schools,Supplies & Services
26/10/2016,3843965,756,REDACTED,201707,Schools,Supplies & Services
14/10/2016,3843240,"3,657.50",Clarion Defence (UK) Ltd,201707,Growth,Supplies & Services
07/10/2016,3841933,792,Sutton Education Solutions Ltd,201707,Education and Commissioning,Support Services
05/10/2016,3841852,"1,960.00",MP Education Services Ltd,201707,Schools,Supplies & Services
28/10/2016,3845701,600,REDACTED,201707,Communities,Third Party Payments
26/10/2016,3845158,800,Signis Ltd,201707,Environment and Place,Supplies & Services
26/10/2016,3845159,800,Signis Ltd,201707,Environment and Place,Supplies & Services
05/10/2016,3841976,550,REDACTED,201707,Communities,Supplies & Services
05/10/2016,3841978,925,REDACTED,201707,Communities,Supplies & Services
05/10/2016,3841979,500,REDACTED,201707,Communities,Supplies & Services
19/10/2016,3843511,500,REDACTED,201707,Communities,Supplies & Services
19/10/2016,3843512,442.5,REDACTED,201707,Communities,Supplies & Services
21/10/2016,3843722,800,REDACTED,201707,Communities,Supplies & Services
26/10/2016,3845125,580,REDACTED,201707,Communities,Third Party Payments
26/10/2016,3844926,750,One Team Logic Ltd,201707,Schools,Supplies & Services
14/10/2016,3843232,593,Team Bees Ltd,201707,Schools,Supplies & Services
07/10/2016,3842368,510,Hereford First Aid,201707,Schools,Employees
07/10/2016,3842780,"3,300.00",Rich Analysts Ltd,201707,Schools,Supplies & Services
21/10/2016,3844147,529.99,Critiqom,201707,Communities,Supplies & Services
21/10/2016,3844148,570.87,Critiqom,201707,Communities,Supplies & Services
05/10/2016,3841955,600,The Plylimon Trust-Horizon Training,201707,Education and Commissioning,Supplies & Services
20/10/2016,2161107,"18,463.00",Hereford Integrated Behaviour Outreach Service,201707,Central Childrens Directorate Costs,Third Party Payments
20/10/2016,2161108,"27,500.00",Hereford Integrated Behaviour Outreach Service,201707,Central Childrens Directorate Costs,Third Party Payments
12/10/2016,3842668,"1,605.00",Hereford Integrated Behaviour Outreach Service,201707,Education and Commissioning,Support Services
12/10/2016,3842918,"3,210.00",Hereford Integrated Behaviour Outreach Service,201707,Education and Commissioning,Support Services
26/10/2016,3844808,"1,070.00",Hereford Integrated Behaviour Outreach Service,201707,Education and Commissioning,Support Services
20/10/2016,2161105,"66,666.67",Hereford Integrated Behaviour Outreach Service,201707,Education and Commissioning,Third Party Payments
20/10/2016,2161106,"1,500.00",Hereford Integrated Behaviour Outreach Service,201707,Education and Commissioning,Third Party Payments
26/10/2016,3845376,"4,000.00",Hereford Integrated Behaviour Outreach Service,201707,Environment and Place,Transport-Related Expenditure
05/10/2016,3842117,625,Hereford Integrated Behaviour Outreach Service,201707,Schools,Employees
14/10/2016,3843061,500,Hereford Integrated Behaviour Outreach Service,201707,Schools,Employees
19/10/2016,3844298,540,Hereford Integrated Behaviour Outreach Service,201707,Schools,Employees
21/10/2016,3843983,"1,275.00",Hereford Integrated Behaviour Outreach Service,201707,Schools,Employees
05/10/2016,3842118,"1,050.00",Hereford Integrated Behaviour Outreach Service,201707,Schools,Supplies & Services
07/10/2016,3842415,"2,850.00",Hereford Integrated Behaviour Outreach Service,201707,Schools,Supplies & Services
07/10/2016,3842714,"1,330.00",Hereford Integrated Behaviour Outreach Service,201707,Schools,Supplies & Services
07/10/2016,3842766,"2,280.00",Hereford Integrated Behaviour Outreach Service,201707,Schools,Supplies & Services
14/10/2016,3843213,"1,140.00",Hereford Integrated Behaviour Outreach Service,201707,Schools,Supplies & Services
19/10/2016,3843397,"1,140.00",Hereford Integrated Behaviour Outreach Service,201707,Schools,Supplies & Services
21/10/2016,3843677,950,Hereford Integrated Behaviour Outreach Service,201707,Schools,Supplies & Services
21/10/2016,3843982,"1,520.00",Hereford Integrated Behaviour Outreach Service,201707,Schools,Supplies & Services
21/10/2016,3844071,"1,330.00",Hereford Integrated Behaviour Outreach Service,201707,Schools,Supplies & Services
05/10/2016,3841939,"1,520.00",Hereford Integrated Behaviour Outreach Service,201707,Schools,Support Services
05/10/2016,3841951,"1,140.00",Hereford Integrated Behaviour Outreach Service,201707,Schools,Support Services
05/10/2016,3841973,"1,050.00",Hereford Integrated Behaviour Outreach Service,201707,Schools,Support Services
14/10/2016,3843554,"2,100.00",Hereford Integrated Behaviour Outreach Service,201707,Schools,Support Services
21/10/2016,3843984,480,REDACTED,201707,Schools,Supplies & Services
07/10/2016,3842004,"1,250.00",REDACTED,201707,Communities,Supplies & Services
28/10/2016,3845466,"2,409.00",Gloucester Soundhouse,201707,Schools,Supplies & Services
14/10/2016,3842634,"2,000.00",Aquarium CMS Ltd (Direct Debit),201707,Integrated Commissioning,Capital Expenditure
14/10/2016,3842635,"2,008.00",Aquarium CMS Ltd (Direct Debit),201707,Integrated Commissioning,Capital Expenditure
14/10/2016,3842663,"2,000.00",Aquarium CMS Ltd (Direct Debit),201707,Integrated Commissioning,Capital Expenditure
20/10/2016,2161104,"147,313.06",Addaction,201707,Public Health,Third Party Payments
14/10/2016,3840620,"3,588.33",Adept Telecom PLC,201707,Resources,Supplies & Services
14/10/2016,3840621,"2,045.52",Adept Telecom PLC,201707,Resources,Supplies & Services
14/10/2016,3843350,"4,141.26",Adept Telecom PLC,201707,Resources,Supplies & Services
14/10/2016,3843351,"1,968.81",Adept Telecom PLC,201707,Resources,Supplies & Services
26/10/2016,3844452,504.6,REDACTED,201707,Mental Health,Supplies & Services
28/10/2016,3845808,"3,460.00",X L Displays Ltd (ELF),201707,Schools,Premises-Related Expenditure
28/10/2016,3845872,560,Dantek Environmental Services,201707,Schools,Premises-Related Expenditure
05/10/2016,3842005,750,REDACTED,201707,Communities,Supplies & Services
26/10/2016,3845549,"1,889.42",Leominster Sunrise Co-operative,201707,Schools,Premises-Related Expenditure
07/10/2016,3839306,"36,000.00",Looking Local,201707,Resources,Supplies & Services
19/10/2016,3843143,"1,281.60",Euclid Limited,201707,Environment and Place,Third Party Payments
19/10/2016,3843531,"4,256.88",Hulse Yazdi Professional Services,201707,Communities,Supplies & Services
21/10/2016,3843975,"2,166.50",Hulse Yazdi Professional Services,201707,Communities,Supplies & Services
14/10/2016,3842666,750,Christopher Whitehead Language College,201707,Education and Commissioning,Support Services
26/10/2016,3844881,750,REDACTED,201707,Environment and Place,Supplies & Services
07/10/2016,2156810,"15,150.87",Matrix SCM Ltd,201707,Adults Operations,Employees
14/10/2016,2160536,"11,505.99",Matrix SCM Ltd,201707,Adults Operations,Employees
21/10/2016,2161406,"16,087.98",Matrix SCM Ltd,201707,Adults Operations,Employees
28/10/2016,2165756,"11,506.12",Matrix SCM Ltd,201707,Adults Operations,Employees
07/10/2016,2156810,"1,956.84",Matrix SCM Ltd,201707,Commissioning Adults,Employees
07/10/2016,2156810,"6,725.89",Matrix SCM Ltd,201707,Communities,Employees
14/10/2016,2160536,"14,769.02",Matrix SCM Ltd,201707,Communities,Employees
07/10/2016,2156810,"3,595.71",Matrix SCM Ltd,201707,Education and Commissioning,Employees
14/10/2016,2160536,"1,359.98",Matrix SCM Ltd,201707,Education and Commissioning,Employees
21/10/2016,2161406,"4,502.96",Matrix SCM Ltd,201707,Education and Commissioning,Employees
28/10/2016,2165756,"3,537.21",Matrix SCM Ltd,201707,Education and Commissioning,Employees
14/10/2016,2160536,"3,033.60",Matrix SCM Ltd,201707,Mental Health,Employees
07/10/2016,2156810,"16,678.54",Matrix SCM Ltd,201707,Safeguarding and Family Support,Employees
14/10/2016,2160536,"10,591.34",Matrix SCM Ltd,201707,Safeguarding and Family Support,Employees
21/10/2016,2161406,"24,711.45",Matrix SCM Ltd,201707,Safeguarding and Family Support,Employees
28/10/2016,2165756,"18,084.68",Matrix SCM Ltd,201707,Safeguarding and Family Support,Employees
05/10/2016,3836697,"4,200.00",Servelec Synergy Ltd,201707,Education and Commissioning,Supplies & Services
12/10/2016,3842665,"2,000.00",Servelec Synergy Ltd,201707,Education and Commissioning,Supplies & Services
12/10/2016,3838976,"19,200.00",Jadu Limited,201707,Resources,Supplies & Services
14/10/2016,3843158,"16,680.00",Jadu Limited,201707,Resources,Supplies & Services
02/11/2016,3841557,"2,700.00",Jadu Limited,201707,Resources,Supplies & Services
21/10/2016,3844004,"26,516.00",Elizabeth Fitzroy Support,201707,Learning Disabilities,Third Party Payments
21/10/2016,3844005,"13,750.00",Elizabeth Fitzroy Support,201707,Learning Disabilities,Third Party Payments
21/10/2016,3844006,"13,750.00",Elizabeth Fitzroy Support,201707,Learning Disabilities,Third Party Payments
21/10/2016,3844007,"38,867.50",Elizabeth Fitzroy Support,201707,Learning Disabilities,Third Party Payments
21/10/2016,3844009,"38,867.50",Elizabeth Fitzroy Support,201707,Learning Disabilities,Third Party Payments
21/10/2016,3844104,645,Meritec Ltd,201707,Schools,Supplies & Services
07/10/2016,3842374,"1,800.00",Rainbow Autism CIC,201707,Transformation and safeguarding,Supplies & Services
19/10/2016,3843513,"5,450.00",Slyspirit,201707,Commissioning Capital,Capital Expenditure
12/10/2016,3842626,895,Fire Service College Limited,201707,Resources,Supplies & Services
28/10/2016,3845469,480,Hereford Drift Trikes,201707,Schools,Supplies & Services
14/10/2016,3843023,600,MAPLYN Care Services Ltd,201707,Adults Operations,Employees
05/10/2016,3842345,"6,762.50",REDACTED,201707,Growth,Third Party Payments
02/11/2016,3846128,781.2,REDACTED,201707,Housing & Independent Living Capital,Capital Expenditure
21/10/2016,3843972,"1,284.80",The Wilkes Parnership Solicitors,201707,Communities,Supplies & Services
21/10/2016,3843973,"4,425.00",The Wilkes Parnership Solicitors,201707,Communities,Supplies & Services
21/10/2016,3843974,"2,970.00",The Wilkes Parnership Solicitors,201707,Communities,Supplies & Services
19/10/2016,3843551,"5,916.67",Just Add SharksLtd,201707,Schools,Supplies & Services
26/10/2016,3845243,"2,680.00",3C Payment (UK) Ltd,201707,Commissioning Capital,Capital Expenditure
21/10/2016,3843558,504,Teales Domestic & Ironing Services,201707,Schools,Premises-Related Expenditure
28/10/2016,3845206,420,Teales Domestic & Ironing Services,201707,Schools,Premises-Related Expenditure
05/10/2016,3842271,"12,980.80",Kingsnordley Building & Restoration Ltd,201707,Housing & Independent Living Capital,Capital Expenditure
05/10/2016,3842575,"48,097.46",Nestor Associates Ltd,201707,Growth Capital,Capital Expenditure
05/10/2016,3842147,"5,000.00",Herriotts World,201707,Schools,Supplies & Services
07/10/2016,3842370,880,REDACTED,201707,Schools,Supplies & Services
07/10/2016,3842557,"2,100.00",REDACTED,201707,Schools,Premises-Related Expenditure
26/10/2016,3844904,"1,120.00",REDACTED,201707,Schools,Supplies & Services
19/10/2016,3843072,521.1,Optimum Interventions Ltd,201707,Director and Management,Supplies & Services
05/10/2016,3842157,860,Roses Theatre Trust,201707,Schools,Supplies & Services
21/10/2016,3843846,"2,675.00",Integrated Radio Ltd,201707,Schools,Supplies & Services
05/10/2016,3842056,997.41,REDACTED,201707,Schools,Premises-Related Expenditure
24/10/2016,3844249,"1,535.66",Hoople Ltd (DIRECT DEBIT ONLY),201707,Safeguarding and Family Support,Employees
24/10/2016,3844250,"4,273.00",Hoople Ltd (DIRECT DEBIT ONLY),201707,Safeguarding and Family Support,Employees
24/10/2016,3844251,"4,273.00",Hoople Ltd (DIRECT DEBIT ONLY),201707,Safeguarding and Family Support,Employees
27/10/2016,3844252,"3,262.56",Hoople Ltd (DIRECT DEBIT ONLY),201707,Safeguarding and Family Support,Employees
14/10/2016,3843616,"50,000.00",Burley Gate CE Primary School,201707,Schools,School Balances
28/10/2016,3845767,"1,233.38",REDACTED,201707,Environment and Place,Supplies & Services
05/10/2016,3842589,"1,500.00",Morris Legal (Solicitors) Ltd,201707,Safeguarding and Family Support,Employees
07/10/2016,3842595,500,Angel Solutions Ltd,201707,Schools,Supplies & Services
19/10/2016,3843429,693,Story Shapers,201707,Schools,Supplies & Services
14/10/2016,3843200,"2,790.00",M A Walsh & Sons,201707,Environment and Place,Third Party Payments
21/10/2016,3844274,"2,667.31",REDACTED,201707,Resources,Supplies & Services
26/10/2016,3844837,771,McLoughlin Planning Ltd,201707,Children & Young People Capital,Capital Expenditure
26/10/2016,3845408,"3,150.00",REDACTED,201707,Communities,Supplies & Services
26/10/2016,3845406,527.5,REDACTED,201707,Schools,Supplies & Services
26/10/2016,3845405,736.84,Akuma Sports,201707,Schools,Supplies & Services
28/10/2016,3845840,"8,433.83",British Gas Business (CIS Only),201707,Resources,Premises-Related Expenditure
26/10/2016,3844935,"43,352.00",REDACTED,201707,Safeguarding and Family Support,Supplies & Services
20/10/2016,2161119,625,REDACTED,201707,Adults Operations,Premises-Related Expenditure
26/10/2016,3844945,554.87,REDACTED,201707,Safeguarding and Family Support,Supplies & Services
26/10/2016,3845223,813.84,REDACTED,201707,Safeguarding and Family Support,Supplies & Services
26/10/2016,3844990,490,REDACTED,201707,Adults Operations,Supplies & Services
24/10/2016,2161013,"1,036.40",REDACTED,201707,Safeguarding and Family Support,Transport-Related Expenditure
14/10/2016,3843193,"1,921.50",REDACTED,201707,Safeguarding and Family Support,Supplies & Services
12/10/2016,3843149,"2,121.43",REDACTED,201707,Safeguarding and Family Support,Third Party Payments
12/10/2016,3843159,"1,928.57",REDACTED,201707,Safeguarding and Family Support,Third Party Payments
28/10/2016,2165762,433.33,REDACTED,201707,Safeguarding and Family Support,Supplies & Services
20/10/2016,2161123,420,REDACTED,201707,Adults Operations,Premises-Related Expenditure
20/10/2016,2161121,"4,333.33",REDACTED,201707,Adults Operations,Premises-Related Expenditure
20/10/2016,2161110,600,REDACTED,201707,Adults Operations,Premises-Related Expenditure
20/10/2016,2161109,600,REDACTED,201707,Adults Operations,Premises-Related Expenditure
20/10/2016,2161115,550,REDACTED,201707,Adults Operations,Premises-Related Expenditure
12/10/2016,2159007,"9,625.71",REDACTED,201707,Adults Operations,Supplies & Services
19/10/2016,2160901,"3,359.89",REDACTED,201707,Adults Operations,Supplies & Services
20/10/2016,2161116,480,REDACTED,201707,Adults Operations,Premises-Related Expenditure
20/10/2016,2161117,475,REDACTED,201707,Adults Operations,Premises-Related Expenditure
20/10/2016,2161111,450,REDACTED,201707,Adults Operations,Premises-Related Expenditure
20/10/2016,2161112,450,REDACTED,201707,Adults Operations,Premises-Related Expenditure
20/10/2016,2161122,650,REDACTED,201707,Adults Operations,Premises-Related Expenditure
20/10/2016,2161125,650,REDACTED,201707,Adults Operations,Premises-Related Expenditure
28/10/2016,2164254,818.96,REDACTED,201707,Safeguarding and Family Support,Supplies & Services
26/10/2016,3844936,625,REDACTED,201707,Safeguarding and Family Support,Supplies & Services
21/10/2016,3843172,"1,505.80",REDACTED,201707,Safeguarding and Family Support,Supplies & Services
12/10/2016,3843263,"10,934.00",REDACTED,201707,Safeguarding and Family Support,Third Party Payments
20/10/2016,2161114,460,REDACTED,201707,Adults Operations,Premises-Related Expenditure
28/10/2016,2165760,433.33,REDACTED,201707,Safeguarding and Family Support,Supplies & Services
20/10/2016,2161124,600,REDACTED,201707,Adults Operations,Premises-Related Expenditure
05/10/2016,3842161,"1,691.00",REDACTED,201707,Safeguarding and Family Support,Supplies & Services
19/10/2016,3843174,800,REDACTED,201707,Safeguarding and Family Support,Supplies & Services
20/10/2016,2161131,525,REDACTED,201707,Adults Operations,Premises-Related Expenditure
07/10/2016,2157254,789.3,REDACTED,201707,Safeguarding and Family Support,Third Party Payments
20/10/2016,2161126,625,REDACTED,201707,Adults Operations,Premises-Related Expenditure
21/10/2016,3843827,"1,020.00",REDACTED,201707,Safeguarding and Family Support,Transport-Related Expenditure
28/10/2016,2165758,433.33,REDACTED,201707,Safeguarding and Family Support,Supplies & Services
14/10/2016,2160536,532.13,REDACTED,201707,Adults Operations,Employees
21/10/2016,2161406,741.75,REDACTED,201707,Adults Operations,Employees
28/10/2016,2165756,478.38,REDACTED,201707,Adults Operations,Employees
28/10/2016,2165756,"5,314.63",REDACTED,201707,Safeguarding and Family Support,Employees
12/10/2016,3842651,844.1,REDACTED,201707,Adults Operations,Supplies & Services
12/10/2016,3842652,"2,100.00",REDACTED,201707,Adults Operations,Supplies & Services
12/10/2016,3842653,959.65,REDACTED,201707,Adults Operations,Supplies & Services
19/10/2016,3843748,"1,400.00",REDACTED,201707,Adults Operations,Supplies & Services
02/11/2016,3845986,"1,823.65",REDACTED,201707,Adults Operations,Supplies & Services
20/10/2016,2161128,600,REDACTED,201707,Adults Operations,Premises-Related Expenditure
20/10/2016,2161127,587.43,REDACTED,201707,Adults Operations,Premises-Related Expenditure
20/10/2016,2161130,800,REDACTED,201707,Adults Operations,Premises-Related Expenditure
20/10/2016,2161129,650,REDACTED,201707,Adults Operations,Premises-Related Expenditure
12/10/2016,3842638,634.5,REDACTED,201707,Safeguarding and Family Support,Premises-Related Expenditure
14/10/2016,3843022,550,REDACTED,201707,Adults Operations,Premises-Related Expenditure
28/10/2016,2165757,433.33,REDACTED,201707,Safeguarding and Family Support,Supplies & Services
,," 14,565,506.69 ",,,,
